Cogmind - Beta 17 @@@ ROGUE MODE // 2026.08.01 @ 17:56:50 Player: naththebg Result: Crushed by singularity! Performance ------------- Evolutions (9) 4500 Regions Visited (33) 6600 Robots Destroyed (515) 2575 Value Destroyed (31722) 31722 Prototype IDs (370) 7400 Alien Tech Used (9) 1800 Bonus (76459) 76459 TOTAL SCORE: 131056 Bonus ------- High Alert Combat Kills 4728 Follower Combat Kills 11103 Prayed to X0-1V1 5000 Major X0-1V1 Interference 8750 Entered Garrisons 2200 Used RIF Installer 6500 Met R17 at Cetus 500 Met R17 at Research 2000 Destroyed MAIN.C Guards 500 Met MAIN.C 5000 Destroyed MAIN.C Shell 5000 Destroyed MAIN.C 10000 Met Architect 300 Destroyed A8 300 Destroyed Architect 15000 Friendly Fire -422 Cogmind --------- Core Integrity 0/1355 Matter 8/1000 Energy 100/100 System Corruption 0% Temperature Cool (-666) Movement Core (50) Location -1/Access_0 Parts ------- > --- POWER (3) -------- (None) > --- PROPULSION (5) --- (None) > --- UTILITY (13) ----- (None) > --- WEAPON (4) ------- (None) > --- INVENTORY (5) ---- Biometal Heavy Treads Experimental Biometal Heavy Treads Experimental Salvage Targeting Computer Peak State ------------ > --- POWER ------------ Quantum Reactor Light Quantum Reactor Hybrid Graviton Reactor > --- PROPULSION ------- Heavy Siege Treads Experimental Biometal Heavy Treads > --- UTILITY ---------- Experimental Power Amplifier Advanced Heat Sink Huge Storage Unit Enhanced Optical Array Concept Weapon Articulator Advanced Thermal Shield Advanced Force Field Relay Coupler [C] Relay Coupler [C] Relay Coupler [C] Relay Coupler [Hunter] Relay Coupler [Heavy] Relay Coupler [Proto] X0-1V1's Piety Tracker > --- WEAPON ----------- Core Cannon Core Cannon > --- INVENTORY -------- Biometal Heavy Treads Biometal Heavy Treads Experimental Power Amplifier Experimental Heat Sink Matter Compressor Concept Weapon Articulator Armor Integrity Analyzer Quantum Capacitor Advanced Weapon Cycler Advanced Force Field Phase Redirector Relay Coupler [Proto] Transdimensional Reconstructor Terrabomb Enhanced Quantum Rifle Compact HERF Cannon Enhanced Hardcell Cannon Enhanced Hardcell Cannon Hellfire Missile Launcher Advanced Remote Datajack Advanced Remote Datajack Improved Plasma Cutter [Rating: 241] Favorites ----------- Power Reinforced Quantum Reactor Engine Improved Deuterium Engine Power Core Neutrino Core Reactor Reinforced Quantum Reactor Propulsion Improved Heavy Treads Treads Improved Heavy Treads Leg Aluminum Leg Wheel Armored Huge Wheel Utility Relay Coupler [C] Device X0-1V1's Piety Tracker Storage Huge Storage Unit Processor Enhanced Optical Array Hackware Relay Coupler [C] Protection Layered Heavy Armor Plating Artifact Phase Armor Weapon Enhanced Hardcell Cannon Energy Gun Medium Laser Energy Cannon Ion Burst Cannon Ballistic Gun Heavy Machine Gun Ballistic Cannon Enhanced Hardcell Cannon Launcher Mini Grenade Launcher Special Weapon Improved Remote Datajack Slashing Weapon Scimitar of Distortion Special Melee Weapon Datajack Build | -11 -10 -10 -8 -8 -7 -7 -6 -6 -6 -6 -6 -6 -6 -5 -5 -5 -5 -4 -4 -4 -4 -4 -4 -3 -3 -2 -2 -2 -1 -1 -1 -1 -1 ------- Run | Yrd Mat Sub Mat Gar Fac Gar Fac Gar Ext Cet Arc Hub Gar Fac Gar Fac Gar Fac Gar Fac Gar Fac Gar Res Gar Res Qua Frg Acc Gar Acc Com Ac0 Slots Evolved 18 | . . . 4 . 2 . 2 . . . . . . 2 . . . 2 . . . . . 2 . 2 . . 2 . . . . Power 1 | . . . . . . . . . . . . . . . . . . . . . . . . 1 . . . . . . . . . Propulsion 3 | . . . 1 . . . 1 . . . . . . . . . . . . . . . . . . . . . 1 . . . . Utility 11 | . . . 2 . 2 . 1 . . . . . . 1 . . . 2 . . . . . 1 . 2 . . . . . . . Weapon 3 | . . . 1 . . . . . . . . . . 1 . . . . . . . . . . . . . . 1 . . . . Parts Attached 306 | 6 5 6 22 4 5 7 5 3 4 8 1 2 8 17 7 3 13 21 8 5 3 . 18 2 6 7 14 22 2 34 . 31 7 Power 21 | 1 . 1 2 . . . 1 . . 1 . . 1 . 1 . 1 1 . . . . . 1 . . 3 1 . 3 . 3 . Engine 4 | 1 . 1 2 . . . . . . . . . . . . . . . . . . . . . . . . . . . . . . Core 2 | . . . . . . . . . . . . . . . 1 . . . . . . . . . . . 1 . . . . . . Reactor 15 | . . . . . . . 1 . . 1 . . 1 . . . 1 1 . . . . . 1 . . 2 1 . 3 . 3 . Propulsion 43 | 2 2 . 7 1 . 1 1 3 . 3 . . 1 2 2 . 3 1 . . 1 . 2 . 3 . 2 1 1 . . 4 . Treads 33 | . 2 . 3 1 . 1 1 1 . 2 . . 1 2 2 . 3 1 . . 1 . 2 . 3 . 2 1 1 . . 3 . Leg 2 | 2 . . . . . . . . . . . . . . . . . . . . . . . . . . . . . . . . . Wheel 8 | . . . 4 . . . . 2 . 1 . . . . . . . . . . . . . . . . . . . . . 1 . Hover . | . . . . . . . . . . . . . . . . . . . . . . . . . . . . . . . . . . Flight . | . . . . . . . . . . . . . . . . . . . . . . . . . . . . . . . . . . Utility 147 | 1 3 1 7 2 3 2 2 . 3 1 1 1 4 8 1 1 5 12 7 5 2 . 9 1 2 6 7 16 . 18 . 13 3 Device 57 | . 2 1 1 2 1 2 1 . 2 . 1 . 2 4 1 1 1 5 1 2 . . 2 1 . . 3 9 . 3 . 8 1 Storage 8 | 1 1 . 2 . . . . . . . . . . 1 . . 1 1 . . . . . . . 1 . . . . . . . Processor 7 | . . . 1 . . . . . . . . . . . . . . 1 . 1 . . . . . 1 . . . . . 2 1 Hackware 48 | . . . 1 . 1 . . . . . . . . 1 . . 1 4 4 . 2 . 7 . 2 2 3 3 . 15 . 2 . Protection 25 | . . . 2 . 1 . 1 . 1 1 . 1 2 2 . . 2 1 2 2 . . . . . 2 . 3 . . . 1 1 Artifact 2 | . . . . . . . . . . . . . . . . . . . . . . . . . . . 1 1 . . . . . Weapon 95 | 2 . 4 6 1 2 4 1 . 1 3 . 1 2 7 3 2 4 7 1 . . . 7 . 1 1 2 4 1 13 . 11 4 Energy Gun 12 | 2 . . 2 . . 1 . . . 1 . 1 1 . . . 2 1 . . . . . . . . . . . . . 1 . Energy Cannon 16 | . . . . . 1 1 . . . . . . . 4 1 . 1 . . . . . 3 . . . . 1 1 . . 3 . Ballistic Gun 14 | . . 1 3 . . . . . . 1 . . . . 1 . . . . . . . . . . . . . . 8 . . . Ballistic Cannon 30 | . . 1 1 . . 1 . . 1 1 . . 1 1 1 1 1 1 . . . . 3 . 1 . 2 1 . 3 . 5 4 Launcher 8 | . . 2 . 1 . 1 . . . . . . . . . . . 3 . . . . . . . . . . . . . 1 . Special Weapon 14 | . . . . . . . 1 . . . . . . 2 . 1 . 2 1 . . . 1 . . 1 . 2 . 2 . 1 . Impact Weapon . | . . . . . . . . . . . . . . . . . . . . . . . . . . . . . . . . . . Slashing Weapon . | . . . . . . . . . . . . . . . . . . . . . . . . . . . . . . . . . . Piercing Weapon . | . . . . . . . . . . . . . . . . . . . . . . . . . . . . . . . . . . Special Melee Weapon 1 | . . . . . 1 . . . . . . . . . . . . . . . . . . . . . . . . . . . . Unidentified Prototypes 29 | . 1 . . . . . 2 . . 4 . 1 . . . . . 1 . 2 . . . . . 1 7 6 . . . 3 1 Corrupted Parts 5 | . . . . . . . . . . . . . . . . . . 1 . . . . . . . . . 2 . . . 2 . System Corruption 29 | . . . . . . . . . . . . . . . . . . 7 . . . . . . . . . 9 . . . 13 . Parts Lost 79 | . . 2 4 3 . . . 2 4 2 1 1 7 6 2 . 5 4 1 1 1 1 . . . 1 . 6 . 13 . 4 8 Power 4 | . . 1 . . . . . . . . . . . . . . 1 . . . . . . . . . . . . 2 . . . Propulsion 11 | . . . 1 1 . . . 1 . 1 . . . 1 . . 2 1 . . 1 . . . . . . . . 1 . . 1 Utility 44 | . . 1 . 1 . . . . 3 1 1 1 4 4 2 . 2 3 1 1 . 1 . . . 1 . 6 . 5 . 2 4 Weapon 20 | . . . 3 1 . . . 1 1 . . . 3 1 . . . . . . . . . . . . . . . 5 . 2 3 Highest Loss Streak 5 | . . 2 2 2 . . . 1 2 2 1 1 4 3 1 . 5 2 1 1 1 1 . . . 1 . 4 . 4 . 4 4 To Critical Strikes 3 | . . . . . . . . . . 1 . . . . . . . 1 . . . . . . . . . . . 1 . . . Average Backups 20 | 3 7 10 16 21 21 20 18 18 20 20 22 21 21 21 21 18 18 20 22 22 22 23 22 21 21 21 20 18 18 21 22 19 18 Power 1 | . 1 1 1 2 2 2 2 . 1 2 3 3 2 1 1 1 1 1 1 1 1 1 1 . . . . . . . . . 1 Propulsion 2 | 2 4 4 4 7 7 5 3 3 2 1 1 1 2 3 2 3 2 2 2 2 1 1 1 2 1 2 2 2 2 1 1 1 2 Utility 8 | . . . . 3 3 3 4 6 7 8 7 7 7 8 7 8 8 9 9 11 14 15 13 13 13 12 9 8 8 10 13 9 8 Weapon 5 | . 2 4 9 9 9 9 8 6 6 6 8 8 7 6 7 5 4 4 8 5 4 4 3 4 4 4 3 2 2 4 3 4 6 Tool/Special . | . . . . . . . . . . . . . . . . . . . . . . . . . . . . . . . . . . Unused Backups 87 | . 1 . 5 1 2 5 2 5 1 4 1 . 4 . 2 . 4 3 3 2 4 . . . . 2 6 . . 7 . 13 10 Power 8 | . . . 1 . . . . . 1 2 . . . . . . 1 . . . . . . . . . . . . . . 2 1 Propulsion 14 | . . . . . . . . . . 1 . . 2 . . . 1 . 3 . 2 . . . . . 3 . . 1 . . 1 Utility 27 | . . . . . . . 1 2 . . . . 1 . . . 1 . . . 2 . . . . . 1 . . 4 . 8 7 Weapon 36 | . 1 . 4 1 2 5 1 3 . 1 1 . 1 . 2 . 1 3 . 2 . . . . . 1 2 . . 2 . 2 1 Tool/Special 2 | . . . . . . . . . . . . . . . . . . . . . . . . . . 1 . . . . . 1 . Average Slot Usage (%) 81 | . 97 98 81 72 82 81 84 79 77 76 80 79 70 80 83 84 82 75 79 80 77 75 82 84 85 85 85 78 81 86 83 84 77 Engine 1 | . 14 13 8 9 7 7 2 . . . . . . . . . . . . . . . . . . . . . . . . . . Reactor 6 | . . . . . . . 3 6 6 6 6 6 5 5 4 . 4 5 5 5 5 5 5 9 9 8 11 9 12 9 4 10 8 Treads 8 | . 11 28 10 1 7 4 6 5 . 3 13 13 12 10 10 11 11 10 10 10 10 10 10 9 9 8 7 7 8 7 8 8 11 Wheel 1 | . . . 8 16 7 7 6 6 13 8 . . . . . . . . . . . . . . . . . . . . . . . Device 19 | . 11 13 7 17 16 19 30 20 30 29 26 26 19 31 33 40 29 18 15 14 12 7 9 13 14 12 7 8 16 15 12 25 27 Storage 5 | . 14 14 8 9 7 7 6 6 6 6 6 6 5 5 5 5 9 5 5 5 5 5 5 4 4 4 4 4 4 4 4 4 4 Processor 1 | . . . 5 . . . . . . . . . . . . . . . . . . . . . . 1 4 4 4 4 4 5 11 Hackware 15 | . . . . . 5 7 6 6 6 6 6 6 5 4 5 5 5 16 26 28 28 31 30 28 28 27 26 23 20 30 36 17 . Protection 5 | . . . 5 3 14 10 7 12 6 7 13 12 11 6 4 . 4 5 5 5 5 5 5 4 4 7 8 4 4 . . 1 4 Energy Cannon 1 | . . . . . 1 . . . . . . . . 4 16 6 5 6 . . . . . . . . . . 1 . . 1 . Ballistic Gun 1 | . . . 13 . . . . . . . . . . . . . . . . . . . . . . . . . . 9 . . . Ballistic Cannon 5 | . . . 8 8 7 5 6 6 6 4 6 5 5 3 . 2 2 2 4 5 4 5 8 9 9 7 7 8 8 2 11 8 10 Special Weapon 2 | . . . . . . . 3 3 . . . . . 1 . 3 2 4 5 5 5 5 5 4 4 4 4 2 4 2 4 1 . Peak Build Rating 241 | 6 20 25 53 51 57 69 80 82 82 111 111 110 116 122 119 117 119 134 135 136 141 141 147 163 168 182 193 205 201 204 204 241 239 Average Rating 135 | 4 7 21 41 48 51 57 75 78 78 86 110 109 106 113 114 115 114 120 126 131 138 133 144 162 163 177 181 184 195 193 195 221 232 On Entrance 114 | . 6 20 25 49 50 51 69 79 82 79 111 110 110 111 110 108 117 115 134 122 136 141 128 147 163 164 167 188 176 201 196 196 226 Avg Prop Armor Cover (%) 4 | . . . 5 9 5 5 4 3 . 6 . . . . . . . . . . . . . . . . . . . . . 7 2 Naked Turns 3 | . . . . . . . . . . . . . . . . . . . . . . . . . . . . . . . . . 3 Heaviest Build 227 | 12 28 32 126 126 134 143 156 160 153 137 137 134 150 145 145 133 149 171 171 169 169 168 168 197 197 213 227 217 195 195 153 203 214 Greatest Support 205 | 20 40 40 60 44 28 28 28 56 56 160 160 160 160 155 150 145 150 150 150 150 150 150 150 150 150 150 150 155 155 155 150 205 205 Greatest Overweight (x) 6 | 1 . . 4 3 4 6 5 5 2 2 . . . . . . . 1 1 1 1 1 1 1 1 1 2 2 1 1 1 2 1 Average Overweight (x) 1 | . . . 1 2 3 4 5 4 2 1 . . . . . . . . . 1 . 1 . 1 1 1 1 1 1 . . 1 . Largest Inventory Capacity 25 | 8 15 15 25 25 25 25 25 25 25 25 25 25 25 25 25 25 25 25 25 25 25 25 25 25 25 25 25 25 25 25 25 25 25 Average Capacity 24 | 7 10 15 20 25 25 25 25 25 25 25 25 25 25 25 25 25 25 25 25 25 25 25 25 25 25 25 25 25 25 25 25 25 24 Most Carried 25 | 7 8 15 24 25 25 25 25 25 24 25 25 24 25 25 25 25 25 25 25 25 25 25 25 25 25 25 25 25 22 25 25 25 24 Average Carried 23 | 4 7 10 18 24 24 24 24 24 23 23 24 23 23 24 24 24 23 24 24 24 24 25 24 24 24 24 24 22 22 24 24 24 22 Final Capacity 25 | 8 15 15 25 25 25 25 25 25 25 25 25 25 25 25 25 25 25 25 25 25 25 25 25 25 25 25 25 25 25 25 25 25 5 Final Carried 25 | 6 8 15 24 25 25 25 25 24 24 25 24 23 25 24 25 24 25 24 25 25 25 25 25 25 25 25 23 24 22 25 25 25 5 Class Distribution -------------------- 58% | Botlord-Tank 6% | Scavenger-Tank 5% | Bothacker-Tank 5% | Mutant 5% | Bothacker-Mutant 5% | Botlord-Mutant 4% | Tank 3% | Bomber Dominant Class ---------------- Mutant | -10/Materials Mutant | -10/Subcaves Bomber | -8/Materials Bomber | -8/Garrison Scavenger-Mutant | -7/Factory Tank | -7/Garrison Tank | -6/Factory Tank | -6/Garrison Commander-Mutant | -6/Extension Bothacker-Mutant | -6/Cetus Bothacker-Mutant | -6/Archives Bothacker-Mutant | -6/Hub_04(d) Botlord-Mutant | -6/Garrison Botlord-Mutant | -5/Factory Bothacker-Tank | -5/Garrison Botlord-Tank | -5/Factory Botlord-Tank | -5/Garrison Botlord-Tank | -4/Factory Botlord-Tank | -4/Garrison Botlord-Tank | -4/Factory Botlord-Tank | -4/Garrison Botlord-Tank | -4/Factory Botlord-Tank | -4/Garrison Botlord-Tank | -3/Research Botlord-Tank | -3/Garrison Botlord-Tank | -2/Research Botlord-Tank | -2/Quarantine Botlord-Tank | -2/Protoforge Botlord-Tank | -1/Access Botlord-Tank | -1/Garrison Botlord-Tank | -1/Access Botlord-Tank | -1/Command Scavenger-Tank | -1/Access_0 Resources | -11 -10 -10 -8 -8 -7 -7 -6 -6 -6 -6 -6 -6 -6 -5 -5 -5 -5 -4 -4 -4 -4 -4 -4 -3 -3 -2 -2 -2 -1 -1 -1 -1 -1 ----------- Run | Yrd Mat Sub Mat Gar Fac Gar Fac Gar Ext Cet Arc Hub Gar Fac Gar Fac Gar Fac Gar Fac Gar Fac Gar Res Gar Res Qua Frg Acc Gar Acc Com Ac0 Matter Collected 25032 | 197 103 183 1557 396 91 639 699 826 924 456 100 423 1627 760 419 23 1081 889 719 105 632 27 1172 201 356 590 924 2827 . 2290 94 3311 391 Remotely . | . . . . . . . . . . . . . . . . . . . . . . . . . . . . . . . . . . Salvage Created 21876 | . 202 67 1327 304 56 995 1336 500 1228 176 97 620 1939 1665 1633 56 1174 964 344 . 363 . 764 76 383 625 576 1416 . 1489 . 833 668 Parts 844 | . 3 2 57 22 5 37 42 28 57 6 3 20 68 58 50 4 50 40 9 . 23 . 25 4 22 36 9 53 . 70 . 33 8 Haulers Intercepted 10 | . 1 . 4 . . . 2 . . . . 1 . . . . . 2 . . . . . . . . . . . . . . . Recyclers Shooed 6 | . . . 1 . . . 3 . . . . . . . . 1 . . . . . . . . . . . . . . . 1 . Parts Field Recycled . | . . . . . . . . . . . . . . . . . . . . . . . . . . . . . . . . . . Retrieved Matter . | . . . . . . . . . . . . . . . . . . . . . . . . . . . . . . . . . . Parts Self-Destructed 4 | . . 4 . . . . . . . . . . . . . . . . . . . . . . . . . . . . . . . Prevented . | . . . . . . . . . . . . . . . . . . . . . . . . . . . . . . . . . . Parts Restored . | . . . . . . . . . . . . . . . . . . . . . . . . . . . . . . . . . . Kills | -11 -10 -10 -8 -8 -7 -7 -6 -6 -6 -6 -6 -6 -6 -5 -5 -5 -5 -4 -4 -4 -4 -4 -4 -3 -3 -2 -2 -2 -1 -1 -1 -1 -1 ------- Run | Yrd Mat Sub Mat Gar Fac Gar Fac Gar Ext Cet Arc Hub Gar Fac Gar Fac Gar Fac Gar Fac Gar Fac Gar Res Gar Res Qua Frg Acc Gar Acc Com Ac0 Combat Hostiles Destroyed 444 | . 3 4 32 14 . 19 18 24 16 5 3 9 31 42 22 . 28 19 11 . 14 . 9 2 8 11 11 31 . 33 . 14 11 Melee 1 | . . . . . . . . . . . . . . 1 . . . . . . . . . . . . . . . . . . . Guns 39 | . 3 . 16 . . . . . . . . . . . . . . . . . . . . . . . . . . 20 . . . Cannons 348 | . . . 13 7 . 19 13 8 16 5 3 9 28 37 21 . 27 11 11 . 13 . 9 2 8 11 11 29 . 13 . 14 10 AOE 45 | . . 4 3 7 . . 4 16 . . . . 2 . . . . 6 . . 1 . . . . . . 2 . . . . . Classes Destroyed 25 | . 4 2 6 1 . 1 3 1 1 . . . . 1 1 . . . 1 . . . . . . . . 3 . . . . . Worker 10 | . . . 2 . 1 . 3 . 2 . . . . . . . . 1 . . . . . . . 1 . . . . . . . Builder 14 | . . . 2 . 1 . 3 . 4 . . . . 1 . 1 . . . . . . . . . 2 . . . . . . . Hauler 10 | . 1 . 4 . . . 2 . . . . 1 . . . . . 2 . . . . . . . . . . . . . . . Recycler 11 | . . . . . . . 5 . 3 . . 1 . 1 . . . . . . . . . . . . . . . . . 1 . Mechanic 1 | . . . . . . . 1 . . . . . . . . . . . . . . . . . . . . . . . . . . Operator 7 | . 1 . 1 . 1 . 1 . 1 . 1 . . . . . . 1 . . . . . . . . . . . . . . . Watcher 16 | . 1 . 2 . . . 1 . . 2 . 1 . 1 . 2 . 2 . . . . 1 . 1 . . 2 . . . . . Swarmer 87 | . . . 3 4 . 3 7 13 . . . . 7 9 3 . 7 4 3 . 3 . 5 . 2 4 . . . 7 . 3 . Cutter 15 | . . . . . . 3 . 3 . . . . . . . . . . . . 3 . . . . . . . . 6 . . . Saboteur 4 | . . . . . . . . . . . . . . 2 . . 2 . . . . . . . . . . . . . . . . Grunt 122 | . 3 . 17 6 . 5 2 4 9 . . 5 16 13 4 . 10 4 2 . . . 2 1 2 2 4 6 . 1 . 4 . Brawler 2 | . . . . 1 . . . . . . . . . 1 . . . . . . . . . . . . . . . . . . . Duelist 7 | . . . 1 . . . 1 . 1 . . . 1 . . . . . 2 . . . . 1 . . . . . . . . . Researcher 1 | . . . . . . . . . . . . . . . . . . . . . . . . . . . . 1 . . . . . Sentry 50 | . . 1 9 3 . 6 . 3 2 . 3 4 4 4 7 . . . . . . . 1 . . . . 1 . . . 2 . Demolisher 1 | . . . . . . . . . . . . . . . . . . . 1 . . . . . . . . . . . . . . Specialist 13 | . . . . . . . . . 2 . . . . 2 1 . . 1 . . . . . . 2 . 1 2 . 2 . . . Hunter 42 | . . . 1 . . 2 6 . 2 . . . . 5 1 . . 6 1 . 3 . . . . 2 3 1 . 8 . 1 . Programmer 63 | . . . . . . . 2 . . . . . 2 6 1 . 8 4 1 . 4 . . . 2 4 3 12 . 9 . 5 . Heavy 1 | . . . 1 . . . . . . . . . . . . . . . . . . . . . . . . . . . . . . Behemoth 7 | . . . . . . . . 1 . . . . 1 . 1 . 1 . 1 . 1 . 1 . . . . . . . . . . Cetus Guard 4 | . . . . . . . . . . 4 . . . . . . . . . . . . . . . . . . . . . . . Enhanced Grunt 5 | . . . . . . . . . . . . . . . . . . . . . . . . . . . . . . . . . 5 Enhanced Sentry 2 | . . . . . . . . . . . . . . . . . . . . . . . . . . . . . . . . . 2 Enhanced Hunter 2 | . . . . . . . . . . . . . . . . . . . . . . . . . . . . . . . . . 2 Hotshot 3 | . . . . . . . . . . . . . . . . . . . . . . . . . . . . 3 . . . . . Decapitator 3 | . . . . . . . . . . . . . . . . . . . . . . . . . . . . 3 . . . . . Executioner 2 | . . . . . . . . . . . . . . . . . . . . . . . . . . . . 2 . . . . . Alpha 7 1 | . . . . . . . . . . . . . . . . . . . . . . . . . . . . 1 . . . . . Subdweller 3 | . . 3 . . . . . . . . . . . . . . . . . . . . . . . . . . . . . . . Assembled 4 | . . . . . . . . . . . . . . . 4 . . . . . . . . . . . . . . . . . . Thug 2 | . . . . . . 1 . . . 1 . . . . . . . . . . . . . . . . . . . . . . . Butcher 1 | . . . . . . . . . . . . . . . 1 . . . . . . . . . . . . . . . . . . Guerrilla 1 | . . . . . . . . . 1 . . . . . . . . . . . . . . . . . . . . . . . . Best Kill Streak 12 | . 2 2 5 4 3 4 10 12 6 4 3 5 7 6 5 2 5 10 4 . 4 . 2 1 3 5 5 4 . 6 . 3 5 Combat Bots Only 12 | . 2 2 5 4 . 4 4 12 4 3 2 4 7 6 5 . 5 5 4 . 4 . 2 1 3 4 5 4 . 6 . 3 5 Max Kills in Single Turn 5 | . 1 1 3 3 2 2 3 3 2 2 1 1 2 2 2 1 3 5 1 . 1 . 2 1 1 2 1 2 . 2 . 2 1 Gunslinging 1 | . . . . . . . . . . . . . . . . . . . . . . . . . . . . . . 1 . . . Exploded 4 | . . 1 1 3 . . 2 3 . . . . 2 . . . . 4 . . 1 . . . . . . 2 . . . . . Melee 1 | . . . . . . . . . . . . . . 1 . . . . . . . . . . . . . . . . . . . Uniques/NPCs Destroyed 4 | . . . . . . . . . . . . . . . . . . . . . . . . . . . . . . . . 2 2 MAIN.C Shell (-1/Command) MAIN.C (-1/Command) A8 (-1/Access_0) Architect (-1/Access_0) Combat | -11 -10 -10 -8 -8 -7 -7 -6 -6 -6 -6 -6 -6 -6 -5 -5 -5 -5 -4 -4 -4 -4 -4 -4 -3 -3 -2 -2 -2 -1 -1 -1 -1 -1 -------- Run | Yrd Mat Sub Mat Gar Fac Gar Fac Gar Ext Cet Arc Hub Gar Fac Gar Fac Gar Fac Gar Fac Gar Fac Gar Res Gar Res Qua Frg Acc Gar Acc Com Ac0 Hostile Shots Fired 2821 | . 8 21 135 43 . 151 66 120 146 21 20 61 169 254 62 . 157 107 76 3 65 1 37 4 44 57 52 269 . 283 4 99 286 Missed 850 | . 3 8 44 15 . 63 18 37 61 7 9 21 44 57 22 . 34 42 22 . 20 . 9 1 9 23 18 70 . 88 1 27 77 Hits 1971 | . 5 13 91 28 . 88 48 83 85 14 11 40 125 197 40 . 123 65 54 3 45 1 28 3 35 34 34 199 . 195 3 72 209 Melee 26 | . . . . . . 3 . 3 . . . . 1 1 . . 1 . 4 . 3 . . . . . . 1 . 9 . . . Projectile 1945 | . 5 13 91 28 . 85 48 80 85 14 11 40 124 196 40 . 122 65 50 3 42 1 28 3 35 34 34 198 . 186 3 72 209 AOE 21 | . . . . . . 3 . 3 1 . . . . 2 . . . 4 2 . . . . . . . . 3 . . . 3 . Critical Strikes 111 | . . 1 5 2 . 2 1 4 5 2 . 1 1 5 . . 5 3 3 1 1 . 1 . 1 1 1 15 . 18 . 12 20 Part Disruptions 7 | . . . . . . . . . . . . . . 1 1 . . . . . . . . . . . . 1 . 1 . 1 2 Damage Taken 35903 | . 55 346 1319 364 . 660 470 1106 1163 321 197 267 2176 2700 1055 . 2593 1755 1013 204 793 37 512 42 423 762 670 5562 . 2906 120 1899 4413 Core 2677 | . 21 39 132 51 . 69 32 19 110 66 18 16 117 137 49 . 359 79 33 . 61 . 11 . 13 68 22 548 . 150 . 46 411 Absorbed by Shields 7434 | . . . . 3 . . . . . . . . . 500 . . 79 . 341 30 409 . 381 39 310 80 360 709 . 1425 127 943 1698 Reduced by Siege Mode 1404 | . . . . . . . . . . . . . 114 233 27 . 304 6 . . 13 . 10 . 6 . . 144 . 276 . 9 262 Redirected to Core 353 | . . . . . . . . . . . . . . . . . . . . . . . . . . . . 353 . . . . . Ignored by Resistances 2320 | . . . 178 69 . 155 184 275 208 87 54 84 210 . . . . . 66 . . . . . . . . 259 . 70 . 64 357 Regen/Repaired (Parts) 4410 | . . . . . 164 411 129 . . . . . . 392 . . . 456 724 . . . . 154 . 3 11 1193 . . . 773 . Core Remaining (%) 73 | 100 . 77 . 75 . 97 . . . . . . 82 . . . 46 . . . . . 79 . 98 . . 10 . . . . . Volleys Fired 1805 | . 28 8 126 45 6 70 57 59 60 30 17 26 118 105 75 7 142 73 53 6 54 1 49 20 24 37 54 151 . 136 7 94 67 Largest 6 | . 2 2 6 1 2 2 1 1 1 1 1 1 2 3 4 3 3 3 1 1 1 1 2 2 2 2 2 3 . 4 3 3 3 Hottest 600 | . 100 60 193 50 118 143 65 65 65 65 65 65 160 300 400 300 300 300 70 7 70 70 240 116 116 116 116 358 . 236 300 300 600 Shots Fired 2825 | . 56 16 285 45 8 99 57 60 61 30 17 26 145 160 212 15 155 95 55 6 54 1 80 26 39 58 86 228 . 311 9 168 162 Gun 667 | . 56 . 189 . . 29 . . . . . . 54 3 75 . 71 . . . . . . . . . . . . 181 . 9 . Cannon 1840 | . . . 92 33 8 70 53 44 61 30 17 26 87 152 137 14 79 58 31 . 25 1 69 13 31 41 72 199 . 91 7 137 162 Launcher 57 | . . 16 4 12 . . 4 12 . . . . 4 . . . . 5 . . . . . . . . . . . . . . . Special 261 | . . . . . . . . 4 . . . . . 5 . 1 5 32 24 6 29 . 11 13 8 17 14 29 . 39 2 22 . Kinetic 1807 | . . . 240 33 6 43 53 44 61 30 17 26 87 74 56 1 55 27 31 . 25 1 41 13 31 41 72 187 . 230 6 129 147 Thermal 700 | . 56 . 41 . 2 56 . . . . . . 54 81 156 13 95 31 . . . . 28 . . . . 12 . 42 1 17 15 Explosive 47 | . . 16 4 12 . . 4 11 . . . . . . . . . . . . . . . . . . . . . . . . . Electromagnetic 10 | . . . . . . . . 1 . . . . 4 . . . . 5 . . . . . . . . . . . . . . . Robot Hit Streak 108 | . 7 10 15 7 3 38 32 20 18 11 19 32 30 18 46 5 34 30 21 8 19 . 14 11 16 25 26 30 . 65 45 108 41 Robot Miss Streak 12 | . 5 1 12 2 2 3 1 3 2 1 . 1 1 5 5 7 5 4 1 . 1 . 3 1 2 2 2 2 . 2 . 1 2 Penetration Max 1 | . . . 1 . . 1 1 . 1 1 1 . 1 1 . . 1 . . . 1 . . . . . . 1 . 1 . . 1 Secondary Targets 6 | . . . . . . . . . . . . . . . . . . . . . . . . . . . . . . 6 . . . Max Gunslinging Chain 1 | . . . . . . . . . . . . . . . . . . . . . . . . . . . . . . 1 . . . Shots Hit Robots 2128 | . 34 9 141 26 5 83 48 41 48 21 17 25 114 118 148 9 127 78 42 6 46 . 56 22 31 43 56 182 . 256 6 142 148 Core Hits 844 | . 10 8 62 13 5 36 30 39 24 8 7 13 58 60 77 4 48 33 12 . 10 . 20 5 10 12 17 46 . 77 2 34 64 Critical Kills 9 | . . . . . . . . . . . . . . . 2 . . . . . . . 1 . . . . 3 . . . . 3 Critical Parts Destroyed 35 | . . . 2 . . . . . . . . . . . 1 . . . . . . . . . . . . 12 . 1 . 6 13 Critical Strikes 166 | . 4 . 12 1 2 6 7 3 6 3 1 4 6 5 3 . 13 4 3 . 1 . 2 1 2 2 5 25 . 3 . 12 30 Burn 11 | . 4 . 1 . . 2 . . . . . . . . . . 4 . . . . . . . . . . . . . . . . Meltdown 1 | . . . . . . . . . . . . . . . . . . . . . . . 1 . . . . . . . . . . Destroy 52 | . . . 2 . . . . . . . . . . . 3 . . . . . . . . . . . . 15 . 1 . 8 23 Blast 102 | . . . 9 1 2 4 7 3 6 3 1 4 6 5 . . 9 4 3 . 1 . 1 1 2 2 5 10 . 2 . 4 7 Melee Attacks 4 | . . . . . 2 . . . . . . . . 2 . . . . . . . . . . . . . . . . . . . Impact . | . . . . . . . . . . . . . . . . . . . . . . . . . . . . . . . . . . Slashing . | . . . . . . . . . . . . . . . . . . . . . . . . . . . . . . . . . . Piercing . | . . . . . . . . . . . . . . . . . . . . . . . . . . . . . . . . . . Sneak Attacks 4 | . . . . . 2 . . . . . . . . 2 . . . . . . . . . . . . . . . . . . . Combat Hostiles . | . . . . . . . . . . . . . . . . . . . . . . . . . . . . . . . . . . Follow-up Attacks . | . . . . . . . . . . . . . . . . . . . . . . . . . . . . . . . . . . Damage Inflicted 101936 | . 477 640 4569 1537 325 3123 3917 3790 3925 1825 1258 1703 6353 7398 5685 316 5724 4155 1872 . 2130 . 2663 612 1353 1810 2337 9904 . 6320 166 6986 9063 Guns 10671 | . 465 . 1655 . . 547 . . . . . . 1366 . 1573 . 1237 . . . . . . . . . . . . 3585 . 243 . Cannons 84497 | . . . 2396 981 144 2576 3365 2103 3925 1825 1258 1703 4550 7346 4112 271 4487 2599 1818 . 2130 . 2663 612 1353 1774 2337 9904 . 2731 166 6305 9063 Explosions 6259 | . . 640 518 556 181 . 552 1687 . . . . 437 . . 45 . 1556 . . . . . . . . . . . . . 87 . Melee . | . . . . . . . . . . . . . . . . . . . . . . . . . . . . . . . . . . Ramming 509 | . 12 . . . . . . . . . . . . 52 . . . . 54 . . . . . . 36 . . . 4 . 351 . Kinetic 70571 | . . . 3555 981 144 2021 3365 2103 3925 1825 1258 1703 4550 4313 1008 . 3957 1623 1818 . 2130 . 1607 612 1353 1774 2337 6904 . 4958 166 4518 6063 Thermal 25715 | . 465 . 398 . . 1102 . . . . . . 1429 3033 4677 271 1767 2042 . . . . 1056 . . . . 3000 . 1358 . 2117 3000 Explosive 4003 | . . 640 518 556 . . 552 1611 . . . . 126 . . . . . . . . . . . . . . . . . . . . Electromagnetic 1040 | . . . . . 181 . . 76 . . . . 248 . . 45 . 490 . . . . . . . . . . . . . . . Impact . | . . . . . . . . . . . . . . . . . . . . . . . . . . . . . . . . . . Slashing . | . . . . . . . . . . . . . . . . . . . . . . . . . . . . . . . . . . Piercing . | . . . . . . . . . . . . . . . . . . . . . . . . . . . . . . . . . . Entropic 98 | . . . 98 . . . . . . . . . . . . . . . . . . . . . . . . . . . . . . Highest Corruption 36 | . . . 9 . . . . 9 4 4 4 . 1 5 5 . 11 8 13 . . . 10 . 1 2 2 26 . 8 8 36 1 Average Corruption 10 | . . . 9 . . . . 5 4 4 4 . 1 4 5 . 10 6 11 . . . 6 . 1 1 1 13 . 5 8 25 1 Corruption Purged 9 | . . . . . . . . . . . . . . . . . . 9 . . . . . . . . . . . . . . . Corruption Blocked . | . . . . . . . . . . . . . . . . . . . . . . . . . . . . . . . . . . Effects 581 | . . . 29 . . . . 10 30 8 3 . 7 22 6 . 55 28 53 . . . 41 . . 7 13 80 . 34 7 148 . Message Errors 144 | . . . 7 . . . . 2 9 4 . . 1 8 2 . 23 8 17 . . . 6 . . . 4 23 . 5 2 23 . Matter Fused 130 | . . . 10 . . . . 2 6 1 . . 1 3 1 . 9 6 11 . . . 9 . . 2 2 17 . 8 3 39 . Heat Flow Errors 67 | . . . 1 . . . . 1 3 . 1 . 1 2 1 . 5 4 8 . . . 7 . . 1 1 7 . 4 1 19 . Energy Discharges 56 | . . . 1 . . . . 1 . 2 1 . . 2 . . 7 2 4 . . . 8 . . . 1 8 . 3 1 15 . Parts Rejected 9 | . . . . . . . . 1 . . 1 . . . . . 1 . . . . . . . . . . 5 . . . 1 . Parts Fused 10 | . . . 1 . . . . . 1 . . . . . . . . 1 . . . . 4 . . . . 1 . . . 2 . Data Loss (minor) 68 | . . . 3 . . . . 2 4 1 . . 3 2 . . 2 2 10 . . . 2 . . 3 3 5 . 7 . 19 . Data Loss (major) 28 | . . . 2 . . . . 1 . . . . 1 . 1 . 1 2 1 . . . 1 . . . . 4 . 4 . 10 . Misfires 24 | . . . . . . . . . 3 . . . . 2 . . 1 . 1 . . . 3 . . 1 2 3 . 1 . 7 . Alerts 15 | . . . 1 . . . . . 2 . . . . . . . 2 1 . . . . 1 . . . . 1 . 1 . 6 . Misdirections 4 | . . . . . . . . . . . . . . . . . . . 1 . . . . . . . . 1 . . . 2 . Weapon Failures 26 | . . . 3 . . . . . 2 . . . . 3 1 . 4 2 . . . . . . . . . 5 . 1 . 5 . Overload Shots . | . . . . . . . . . . . . . . . . . . . . . . . . . . . . . . . . . . Overflow Damage 6801 | . . 44 328 81 13 106 664 196 297 108 17 65 357 741 26 12 439 448 171 . 424 . 165 . 94 142 241 744 . 126 . 230 522 Projectiles 6533 | . . . 328 64 13 106 649 163 297 108 17 65 357 729 26 12 439 303 171 . 424 . 165 . 94 142 241 744 . 126 . 228 522 Explosions 254 | . . 44 . 17 . . 15 33 . . . . . . . . . 145 . . . . . . . . . . . . . . . Melee 14 | . . . . . . . . . . . . . . 12 . . . . . . . . . . . . . . . . . 2 . Knockbacks 289 | . . . 13 6 1 2 20 4 8 1 1 6 21 28 . . 15 5 4 . 3 . 2 6 10 7 19 44 . 8 . 33 22 Impact 6 | . . . . . . . . . . . . . . 1 . . . . . . . . . . . . . . . . . 5 . Kinetic 262 | . . . 13 4 1 2 18 4 8 1 1 5 17 24 . . 15 5 4 . 3 . 2 6 10 7 17 40 . 6 . 27 22 Secondary 21 | . . . . 2 . . 2 . . . . 1 4 3 . . . . . . . . . . . . 2 4 . 2 . 1 . Self-Inflicted Damage 566 | . . 132 . 20 . . . 187 . . . . . . . . . 208 . . . . . . . . . 19 . . . . . Shots 17 | . . 4 . 1 . . . 7 . . . . . . . . . 4 . . . . . . . . . 1 . . . . . Rammed 49 | . 1 . . . . . . . . . . . . 1 . . . . 3 . . . . . . 3 . . . 1 . 40 . Targets Rammed 49 | . 1 . . . . . . . . . . . . 1 . . . . 3 . . . . . . 3 . . . 1 . 40 . Kicked . | . . . . . . . . . . . . . . . . . . . . . . . . . . . . . . . . . . Crushed . | . . . . . . . . . . . . . . . . . . . . . . . . . . . . . . . . . . Highest Temperature 464 | . 225 . 246 23 33 228 . 316 227 3 121 18 276 257 . . 106 394 241 . 111 8 271 . 15 141 165 292 . 215 172 464 330 Average Temperature 72 | . 43 . 66 6 16 59 . 82 79 3 37 9 93 47 . . 56 111 79 . 37 6 104 . 6 73 56 80 . 97 91 79 141 Received Heat Transfer 6550 | . 30 81 576 225 . 138 18 542 530 9 45 135 601 814 147 . 820 96 52 14 31 . 56 6 77 13 69 1288 . 39 4 31 63 Effects 7 | . . . . . . 2 . . . . . . 2 . . . . . . . . . 2 . . . . . . . . 1 . Energy Bleed 2 | . . . . . . . . . . . . . . . . . . . . . . . 1 . . . . . . . . 1 . Interference 5 | . . . . . . 2 . . . . . . 2 . . . . . . . . . 1 . . . . . . . . . . Siege Activations 53 | . . . . . . . . . . . . . 6 11 3 . 6 6 1 . 2 . 1 . 2 1 1 5 . 5 . 1 2 Total Turns 997 | . . . . . . . . . . . . . 169 211 47 . 203 49 1 . 28 . 10 . 12 1 1 81 . 118 . 23 43 Longest Duration 116 | . . . . . . . . . . . . . 53 83 21 . 116 13 1 . 25 . 10 . 6 1 1 28 . 51 . 23 36 Martial Activations . | . . . . . . . . . . . . . . . . . . . . . . . . . . . . . . . . . . Shielding Activations . | . . . . . . . . . . . . . . . . . . . . . . . . . . . . . . . . . . Robots Disrupted 1 | . . . . . 1 . . . . . . . . . . . . . . . . . . . . . . . . . . . . Combat Hostiles . | . . . . . . . . . . . . . . . . . . . . . . . . . . . . . . . . . . Robots Corrupted 7 | . . . . . . . 2 . . . . . 1 2 . . . 2 . . . . . . . . . . . . . . . Combat Hostiles 5 | . . . . . . . 1 . . . . . 1 1 . . . 2 . . . . . . . . . . . . . . . Parts Fried 13 | . . . . . . . 2 . . . . . 2 4 . . . 5 . . . . . . . . . . . . . . . Impact Corruptions 8 | . . . . . . . 2 . . . . . 2 3 . . . . . . . . . . . . . . . . . 1 . Robots Melted 7 | . . . . . . 1 . . . . . . . 3 1 . 1 . . . . . 1 . . . . . . . . . . Combat Hostiles 5 | . . . . . . . . . . . . . . 3 1 . 1 . . . . . . . . . . . . . . . . Parts Melted 23 | . . . 2 . . 1 . . . . . . 4 5 4 . 4 1 . . . . 1 . . . 1 . . . . . . Heat Transferred 22942 | . 1665 . 744 . . 2436 . . . . . . 1863 3546 5200 325 3301 1800 . . . . 925 . . . . . . 1033 . 104 . Parts Sabotaged 3 | . . . . . . . . . . . . . . 2 . . 1 . . . . . . . . . . . . . . . . Parts Stolen . | . . . . . . . . . . . . . . . . . . . . . . . . . . . . . . . . . . Parts Stripped . | . . . . . . . . . . . . . . . . . . . . . . . . . . . . . . . . . . Power Chain Reactions 1 | . . . . . . . . . . . . . 1 . . . . . . . . . . . . . . . . . . . . Alert | -11 -10 -10 -8 -8 -7 -7 -6 -6 -6 -6 -6 -6 -6 -5 -5 -5 -5 -4 -4 -4 -4 -4 -4 -3 -3 -2 -2 -2 -1 -1 -1 -1 -1 ------- Run | Yrd Mat Sub Mat Gar Fac Gar Fac Gar Ext Cet Arc Hub Gar Fac Gar Fac Gar Fac Gar Fac Gar Fac Gar Res Gar Res Qua Frg Acc Gar Acc Com Ac0 Maximum Alert Level 4 | . . . 3 3 2 3 3 4 3 2 1 1 3 3 4 2 3 2 3 2 4 2 3 1 2 1 . . . 3 2 . . Low Security (%) 33 | 100 100 . 41 . . . . . . . . 78 8 . . . . . . . . . . 88 26 59 100 100 100 32 . 100 . Level 1 9 | . . . 4 . 3 16 . . . . 100 21 10 5 . . 3 27 15 8 5 . 41 11 3 40 . . . 18 6 . . Level 2 34 | . . . 37 30 96 47 85 12 49 100 . . 47 79 31 100 52 72 53 91 7 100 44 . 70 . . . . 32 93 . . Level 3 19 | . . . 15 69 . 35 14 61 50 . . . 33 15 59 . 44 . 30 . 37 . 14 . . . . . . 16 . . . Level 4 3 | . . . . . . . . 26 . . . . . . 8 . . . . . 48 . . . . . . . . . . . . Level 5 . | . . . . . . . . . . . . . . . . . . . . . . . . . . . . . . . . . . High Security . | . . . . . . . . . . . . . . . . . . . . . . . . . . . . . . . . . . Max Security . | . . . . . . . . . . . . . . . . . . . . . . . . . . . . . . . . . . Peak Influence 1241 | . 30 . 814 957 536 948 899 1241 930 683 264 230 986 812 1197 683 957 683 820 650 1186 636 702 394 621 376 101 173 59 955 572 192 . Initial 648 | . . . . 523 501 277 497 611 648 520 244 79 147 517 441 627 395 396 343 430 361 622 390 394 . 348 48 42 59 31 572 192 . Average 463 | . 5 . 361 786 469 635 613 928 717 602 247 129 600 528 817 618 686 475 549 486 982 585 472 56 441 183 34 35 52 395 506 29 . Influence Increases 18308 | . 99 20 1303 464 56 731 688 685 1028 372 82 251 909 920 776 128 747 1229 617 530 1045 66 642 156 661 441 512 1077 . 1374 78 448 173 Destroy 0b10 Robot/C 7318 | . 60 20 640 280 . 465 270 375 390 135 60 135 465 660 270 . 435 285 195 90 315 15 165 60 261 156 156 384 . 420 12 144 . Destroy 0b10 Robot/NC 420 | . 15 . 55 . 20 15 64 . 60 8 4 12 28 12 24 12 12 28 . 4 . . 20 . 3 12 3 6 . . . 3 . Destroy Leader 1098 | . 14 . 172 10 2 40 78 40 44 . . 52 32 138 8 4 40 66 16 24 32 8 32 16 32 30 26 52 . 48 . 42 . Allied During Kill 2491 | . . . . . 1 43 . 8 247 58 2 . . 15 2 . 19 99 98 62 347 23 142 76 296 194 185 252 . 235 12 75 . Successful Hack 245 | . 10 . 12 21 . 32 14 33 . . . . 11 17 11 . 22 4 6 . 14 . . . . . 5 21 . 9 . 3 . Disable Machine 984 | . . . 105 45 30 . 36 24 12 . 12 12 12 . . 108 36 144 12 96 . 12 . . . 27 90 108 . 9 18 27 9 Anti-Garrison Action 2249 | . . . . 50 . 75 . 113 . . . . 189 . 413 . 151 . 226 . 227 . 227 . 38 . . . . 540 . . . Destroy Structure 2118 | . . . 69 58 3 7 26 56 275 12 4 4 124 54 36 4 32 274 64 122 86 8 56 4 31 22 38 218 . 95 36 136 164 Partial Spotted 9 | . . . . . . . . . . . . . . . . . . . . . . . . . . . 9 . . . . . . Lose Combat Pursuer 384 | . . . 30 . . 54 12 36 . . . 36 48 24 12 . . 36 . . 24 . . . . . . 36 . 18 . 18 . Miscellaneous 992 | . . . 220 . . . 188 . . 159 . . . . . . . 293 . 132 . . . . . . . . . . . . . Influence Decreases 18193 | . 99 20 497 313 616 180 763 322 1334 690 468 267 133 1275 210 760 555 1496 287 834 375 694 498 858 40 976 521 1055 60 458 733 653 153 Entered New Map 7620 | . . . . 283 456 120 451 262 588 410 368 147 63 469 190 570 170 361 147 390 155 564 168 308 . 273 38 35 40 8 383 108 95 Time Decay 5533 | . 99 20 467 . 160 . 302 . 526 180 70 110 . 556 . 190 . 580 . 214 . 20 . 188 . 410 387 549 20 . 110 375 . Lost Part 708 | . . . 30 30 . . . 20 40 20 10 10 70 60 20 . 50 40 10 10 10 10 . . . 10 . 60 . 130 . 10 58 Lost Ally 3182 | . . . . . . 60 10 40 180 80 20 . . 40 . . 60 240 130 70 210 100 330 62 40 283 96 411 . 320 240 160 . Purge Threat 1150 | . . . . . . . . . . . . . . 150 . . 275 275 . 150 . . . 300 . . . . . . . . . Squads Dispatched 79 | . 1 . 5 . . . 6 . 3 . . 4 . 9 . 1 . 10 . 2 . 1 . 5 . 6 6 13 . . 1 6 . Investigation 7 | . . . 2 . . . 1 . . . . . . . . . . . . . . . . 2 . 1 . 1 . . . . . Extermination 26 | . . . . . . . 1 . . . . . . 3 . . . 4 . 1 . . . . . 2 3 6 . . 1 5 . Reinforcement 33 | . 1 . 3 . . . 3 . 2 . . 2 . 3 . . . 3 . 1 . . . 3 . 2 3 6 . . . 1 . Assault 8 | . . . . . . . 1 . 1 . . . . 3 . 1 . 2 . . . . . . . . . . . . . . . Garrison 5 | . . . . . . . . . . . . 2 . . . . . 1 . . . 1 . . . 1 . . . . . . . Intercept . | . . . . . . . . . . . . . . . . . . . . . . . . . . . . . . . . . . Searches Triggered . | . . . . . . . . . . . . . . . . . . . . . . . . . . . . . . . . . . Construction Impeded 7 | . . . . . . . 2 . 1 . . . . . . . . 1 . . . . . 1 . 1 . 1 . . . . . Haulers Reinforced 4 | . . . . . . . . . . . . 1 . 2 . . . . . . . . . 1 . . . . . . . . . Active Scanning Responses . | . . . . . . . . . . . . . . . . . . . . . . . . . . . . . . . . . . Cargo Convoy Interrupts . | . . . . . . . . . . . . . . . . . . . . . . . . . . . . . . . . . . Alert ID Control Effect 195 | . . . . . . . . . . . . . . . . . . 14 14 5 13 2 18 16 7 15 16 35 . 15 7 18 . Stealth | -11 -10 -10 -8 -8 -7 -7 -6 -6 -6 -6 -6 -6 -6 -5 -5 -5 -5 -4 -4 -4 -4 -4 -4 -3 -3 -2 -2 -2 -1 -1 -1 -1 -1 --------- Run | Yrd Mat Sub Mat Gar Fac Gar Fac Gar Ext Cet Arc Hub Gar Fac Gar Fac Gar Fac Gar Fac Gar Fac Gar Res Gar Res Qua Frg Acc Gar Acc Com Ac0 Distress Signals 47 | . . . 5 . . . 2 . . 2 . 1 . 1 . . . 3 . . . 1 . 5 . . 3 5 . . . 19 . Communications Jammed . | . . . . . . . . . . . . . . . . . . . . . . . . . . . . . . . . . . Distress Signals . | . . . . . . . . . . . . . . . . . . . . . . . . . . . . . . . . . . Times Spotted 861 | . 11 5 45 11 6 21 22 25 27 9 8 12 38 50 26 2 29 56 39 4 46 3 27 24 29 38 37 80 . 63 4 39 25 Peak Tracking Total 12 | . 2 2 6 4 3 3 5 7 6 5 1 6 8 7 7 1 8 6 9 2 12 3 4 6 6 9 7 8 . 7 2 6 6 Tactical Retreats 27 | . . . 2 . . 3 1 2 . . . 3 3 2 1 . . 2 . . 1 . . . . . . 4 . 1 . 2 . Traps | -11 -10 -10 -8 -8 -7 -7 -6 -6 -6 -6 -6 -6 -6 -5 -5 -5 -5 -4 -4 -4 -4 -4 -4 -3 -3 -2 -2 -2 -1 -1 -1 -1 -1 ------- Run | Yrd Mat Sub Mat Gar Fac Gar Fac Gar Ext Cet Arc Hub Gar Fac Gar Fac Gar Fac Gar Fac Gar Fac Gar Res Gar Res Qua Frg Acc Gar Acc Com Ac0 Traps Triggered 55 | . . . 1 2 . 3 1 6 3 . . . . . 4 . 2 7 8 1 3 . 5 . 1 . . 2 . 5 . 1 . Indirectly . | . . . . . . . . . . . . . . . . . . . . . . . . . . . . . . . . . . Trap Hack Attempts 12 | . . . . . . . . . . . . . . 12 . . . . . . . . . . . . . . . . . . . Triggered . | . . . . . . . . . . . . . . . . . . . . . . . . . . . . . . . . . . Disarmed . | . . . . . . . . . . . . . . . . . . . . . . . . . . . . . . . . . . Reprogrammed 1 | . . . . . . . . . . . . . . 1 . . . . . . . . . . . . . . . . . . . Reused . | . . . . . . . . . . . . . . . . . . . . . . . . . . . . . . . . . . Traps Extracted . | . . . . . . . . . . . . . . . . . . . . . . . . . . . . . . . . . . Installed . | . . . . . . . . . . . . . . . . . . . . . . . . . . . . . . . . . . Triggered . | . . . . . . . . . . . . . . . . . . . . . . . . . . . . . . . . . . Most Traps Carried 1 | . . . . . . . . . . . . . . . . . 1 1 . . . . . . . . . . . . . . . Machines | -11 -10 -10 -8 -8 -7 -7 -6 -6 -6 -6 -6 -6 -6 -5 -5 -5 -5 -4 -4 -4 -4 -4 -4 -3 -3 -2 -2 -2 -1 -1 -1 -1 -1 ---------- Run | Yrd Mat Sub Mat Gar Fac Gar Fac Gar Ext Cet Arc Hub Gar Fac Gar Fac Gar Fac Gar Fac Gar Fac Gar Res Gar Res Qua Frg Acc Gar Acc Com Ac0 Machines Disabled 121 | . . . 7 4 2 . 3 5 5 . 1 1 4 . 1 9 3 12 5 8 4 1 4 . 1 3 10 15 . 7 2 3 1 Max in Single Turn 4 | . . . 2 1 2 . 1 1 . . 1 1 2 . 1 4 1 3 1 . 1 . 1 . 1 1 1 2 . 1 2 1 1 Garrison Access 2 | . . . . . . . . . . . . . . . . . . . . . . . . 1 . 1 . . . . . . . Garrison Relay 23 | . . . . 1 . . . 1 . . . . 1 . 1 . . . 3 . 4 . 5 . 1 . . . . 6 . . . Phase Generator 6 | . . . . . . 1 . 1 . . . . 1 . 1 . . . . . . . 1 . . . . . . . . 1 . Machines Repaired . | . . . . . . . . . . . . . . . . . . . . . . . . . . . . . . . . . . Machines Dismantled 2 | . . . . . . . . . . . . . . . . . . . . . . . . . . 2 . . . . . . . Machines Sabotaged . | . . . . . . . . . . . . . . . . . . . . . . . . . . . . . . . . . . Overloaded Fab Kills . | . . . . . . . . . . . . . . . . . . . . . . . . . . . . . . . . . . Hacking | -11 -10 -10 -8 -8 -7 -7 -6 -6 -6 -6 -6 -6 -6 -5 -5 -5 -5 -4 -4 -4 -4 -4 -4 -3 -3 -2 -2 -2 -1 -1 -1 -1 -1 --------- Run | Yrd Mat Sub Mat Gar Fac Gar Fac Gar Ext Cet Arc Hub Gar Fac Gar Fac Gar Fac Gar Fac Gar Fac Gar Res Gar Res Qua Frg Acc Gar Acc Com Ac0 Machines Accessed 78 | . 5 1 8 3 1 3 3 3 . . . 1 3 6 2 2 3 7 2 2 3 1 3 4 1 2 2 2 1 2 . 2 . Terminals 49 | . 5 . 5 3 . 3 1 3 . . . . 3 4 2 . 3 2 2 . 3 . 3 1 1 1 . . . 2 . 2 . Fabricators 2 | . . . . . . . . . . . . . . . . . . 1 . 1 . . . . . . . . . . . . . Repair Stations . | . . . . . . . . . . . . . . . . . . . . . . . . . . . . . . . . . . Recycling Units 3 | . . . 1 . . . 1 . . . . . . 1 . . . . . . . . . . . . . . . . . . . Scanalyzers 10 | . . . 1 . . . . . . . . . . . . 1 . 3 . . . . . 1 . . 2 2 . . . . . Garrison Access 13 | . . . 1 . 1 . 1 . . . . 1 . 1 . 1 . 1 . 1 . 1 . 2 . 1 . . 1 . . . . Total Hacks 151 | . 17 4 24 5 1 5 6 6 . . . 1 6 12 3 4 7 11 4 2 3 1 3 7 1 5 4 4 1 2 . 2 . Successful 72 | . 6 4 11 2 1 3 2 3 . . . 1 1 7 1 3 2 4 2 1 2 1 1 4 1 1 1 3 1 2 . 1 . Failed 78 | . 11 . 12 3 . 2 4 3 . . . . 5 5 2 1 5 7 2 1 1 . 2 3 . 4 3 1 . . . 1 . Catastrophic 16 | . 1 . 4 . . . 1 1 . . . . . . 1 . 1 4 . . 1 . 1 . . 1 . . . . . . . Database Lockouts 1 | . . . 1 . . . . . . . . . . . . . . . . . . . . . . . . . . . . . . Manual 42 | . 16 . 9 2 . . 1 1 . . . . 1 7 . . 2 3 . . . . . . . . . . . . . . . Terminals 101 | . 17 . 14 5 . 5 4 6 . . . . 6 9 3 . 7 4 4 . 3 . 3 2 1 4 . . . 2 . 2 . Fabricators 2 | . . . . . . . . . . . . . . . . . . 1 . 1 . . . . . . . . . . . . . Repair Stations . | . . . . . . . . . . . . . . . . . . . . . . . . . . . . . . . . . . Recycling Units 7 | . . . 4 . . . 1 . . . . . . 2 . . . . . . . . . . . . . . . . . . . Scanalyzers 23 | . . . 4 . . . . . . . . . . . . 3 . 5 . . . . . 3 . . 4 4 . . . . . Garrison Access 14 | . . . 2 . 1 . 1 . . . . 1 . 1 . 1 . 1 . 1 . 1 . 2 . 1 . . 1 . . . . Terminal Hacks 36 | . 4 4 2 2 . 3 1 3 . . . . . 2 1 . 2 1 2 . 2 . 1 2 1 . . . . 2 . 1 . Record 4 | . . 4 . . . . . . . . . . . . . . . . . . . . . . . . . . . . . . . Prototype ID Bank 4 | . 3 . . . . . . . . . . . . . . . . 1 . . . . . . . . . . . . . . . Open Door 5 | . . . . 1 . 1 . . . . . . . . . . . . 1 . 1 . . . . . . . . . . 1 . Branch Access Points 1 | . . . 1 . . . . . . . . . . . . . . . . . . . . . . . . . . . . . . Emergency Access Points 8 | . . . . . . 1 . 1 . . . . . . 1 . 1 . 1 . . . 1 . 1 . . . . 1 . . . Garrison Index 1 | . . . . . . . 1 . . . . . . . . . . . . . . . . . . . . . . . . . . Alert Level 1 | . . . 1 . . . . . . . . . . . . . . . . . . . . . . . . . . . . . . Unreport Threat 3 | . . . . . . . . . . . . . . 1 . . . . . . . . . 2 . . . . . . . . . Locate Traps 1 | . . . . . . . . . . . . . . 1 . . . . . . . . . . . . . . . . . . . Registered Components 1 | . 1 . . . . . . . . . . . . . . . . . . . . . . . . . . . . . . . . Garrison Registry 6 | . . . . 1 . 1 . 1 . . . . . . . . 1 . . . 1 . . . . . . . . 1 . . . Patrol Navigation 1 | . . . . . . . . 1 . . . . . . . . . . . . . . . . . . . . . . . . . Fabricator Hacks 1 | . . . . . . . . . . . . . . . . . . 1 . . . . . . . . . . . . . . . Network Status 1 | . . . . . . . . . . . . . . . . . . 1 . . . . . . . . . . . . . . . Repair Station Hacks . | . . . . . . . . . . . . . . . . . . . . . . . . . . . . . . . . . . Recycling Unit Hacks 4 | . . . 3 . . . . . . . . . . 1 . . . . . . . . . . . . . . . . . . . Retrieve Matter 2 | . . . 2 . . . . . . . . . . . . . . . . . . . . . . . . . . . . . . Retrieve Components 2 | . . . 1 . . . . . . . . . . 1 . . . . . . . . . . . . . . . . . . . Scanalyzer 10 | . . . 3 . . . . . . . . . . . . 2 . 1 . . . . . . . . 1 3 . . . . . Retrieve Study 10 | . . . 3 . . . . . . . . . . . . 2 . 1 . . . . . . . . 1 3 . . . . . Garrison Access Hacks 13 | . . . 1 . 1 . 1 . . . . 1 . 1 . 1 . 1 . 1 . 1 . 2 . 1 . . 1 . . . . Unlock Access 12 | . . . 1 . 1 . 1 . . . . 1 . 1 . 1 . 1 . 1 . 1 . 2 . . . . 1 . . . . Seal Access 1 | . . . . . . . . . . . . . . . . . . . . . . . . . . 1 . . . . . . . Unauthorized Hacks 8 | . 2 . 2 . . . . . . . . . 1 3 . . . . . . . . . . . . . . . . . . . Terminals 8 | . 2 . 2 . . . . . . . . . 1 3 . . . . . . . . . . . . . . . . . . . Botnet 8 | . 2 . 2 . . . . . . . . . 1 3 . . . . . . . . . . . . . . . . . . . Fabricators . | . . . . . . . . . . . . . . . . . . . . . . . . . . . . . . . . . . Repair Stations . | . . . . . . . . . . . . . . . . . . . . . . . . . . . . . . . . . . Recycling Units . | . . . . . . . . . . . . . . . . . . . . . . . . . . . . . . . . . . Scanalyzers . | . . . . . . . . . . . . . . . . . . . . . . . . . . . . . . . . . . Garrison Access . | . . . . . . . . . . . . . . . . . . . . . . . . . . . . . . . . . . Data Cores Recovered 1 | . . . . . . . . . . . . . . . . . . . . . . . . . . . . 1 . . . . . Used . | . . . . . . . . . . . . . . . . . . . . . . . . . . . . . . . . . . Hacking Detections 57 | . 4 . 6 3 . 1 3 3 . . . . 3 5 1 1 3 5 1 2 1 1 3 4 . 1 2 2 . 1 . 1 . Full Trace Events 7 | . . . 1 . . . . . . . . . 1 . 1 . 2 . . . . . . 1 . 1 . . . . . . . Feedback Events 1 | . . . . . . . . . . . . . 1 . . . . . . . . . . . . . . . . . . . . Corruption 1 | . . . . . . . . . . . . . 1 . . . . . . . . . . . . . . . . . . . . Feedback Blocked . | . . . . . . . . . . . . . . . . . . . . . . . . . . . . . . . . . . Robot Schematics Acquired 2 | . . . . . . . . . . . . . . . . . . . . . . . . . . . 2 . . . . . . Robots Built . | . . . . . . . . . . . . . . . . . . . . . . . . . . . . . . . . . . Authchips . | . . . . . . . . . . . . . . . . . . . . . . . . . . . . . . . . . . Time . | . . . . . . . . . . . . . . . . . . . . . . . . . . . . . . . . . . Total Robot Build Rating . | . . . . . . . . . . . . . . . . . . . . . . . . . . . . . . . . . . Part Schematics Acquired 1 | . . . . . . . . . . . . . . . . . . . . . . . . . . . 1 . . . . . . Parts Built . | . . . . . . . . . . . . . . . . . . . . . . . . . . . . . . . . . . Authchips . | . . . . . . . . . . . . . . . . . . . . . . . . . . . . . . . . . . Time . | . . . . . . . . . . . . . . . . . . . . . . . . . . . . . . . . . . Total Part Build Rating . | . . . . . . . . . . . . . . . . . . . . . . . . . . . . . . . . . . Part Studies Acquired 10 | . . . 3 . . . . . . . . . . . . 2 . 1 . . . . . . . . 1 3 . . . . . Parts Repaired . | . . . . . . . . . . . . . . . . . . . . . . . . . . . . . . . . . . Time . | . . . . . . . . . . . . . . . . . . . . . . . . . . . . . . . . . . Parts Recycled . | . . . . . . . . . . . . . . . . . . . . . . . . . . . . . . . . . . Recycled Matter . | . . . . . . . . . . . . . . . . . . . . . . . . . . . . . . . . . . Retrieved Matter . | . . . . . . . . . . . . . . . . . . . . . . . . . . . . . . . . . . Retrieved Components 18 | . . . 9 . . . . . . . . . . 9 . . . . . . . . . . . . . . . . . . . Parts Scanalyzed . | . . . . . . . . . . . . . . . . . . . . . . . . . . . . . . . . . . Part Schematics Acquired . | . . . . . . . . . . . . . . . . . . . . . . . . . . . . . . . . . . Parts Damaged . | . . . . . . . . . . . . . . . . . . . . . . . . . . . . . . . . . . Bothacking | -11 -10 -10 -8 -8 -7 -7 -6 -6 -6 -6 -6 -6 -6 -5 -5 -5 -5 -4 -4 -4 -4 -4 -4 -3 -3 -2 -2 -2 -1 -1 -1 -1 -1 ------------ Run | Yrd Mat Sub Mat Gar Fac Gar Fac Gar Ext Cet Arc Hub Gar Fac Gar Fac Gar Fac Gar Fac Gar Fac Gar Res Gar Res Qua Frg Acc Gar Acc Com Ac0 Used RIF Installer 13 | . . . . 1 . 2 . . . . . . 1 . 1 . 1 . 1 . 1 . 1 . 2 . . . . 2 . . . Coupler Efficiency 1 | . . . . . . . . . . . . . . . 1 . . . . . . . . . . . . . . . . . . Code Merge 1 | . . . . . . . . . . . . . . . . . . . . . . . . . . . . . . 1 . . . Command Fork 2 | . . . . . . . . . . . . . . . . . . . 1 . . . . . . . . . . 1 . . . Threat Obfuscator 2 | . . . . . . 1 . . . . . . . . . . . . . . . . . . 1 . . . . . . . . Robot Detection 1 | . . . . . . . . . . . . . . . . . . . . . . . 1 . . . . . . . . . . Patrol Navigation 1 | . . . . . . . . . . . . . . . . . . . . . . . . . 1 . . . . . . . . Alert ID Control 1 | . . . . . . . . . . . . . 1 . . . . . . . . . . . . . . . . . . . . Structural Interface 1 | . . . . . . . . . . . . . . . . . 1 . . . . . . . . . . . . . . . . Program Shield 1 | . . . . . . 1 . . . . . . . . . . . . . . . . . . . . . . . . . . . Autoassimilate 1 | . . . . . . 1 . . . . . . . . . . . . . . . . . . . . . . . . . . . Crosswire 1 | . . . . . . . . . . . . . . . . . . . . . 1 . . . . . . . . . . . . Robots Hacked 183 | . . . . . 1 . . . . . . . . 4 . 1 1 23 12 4 16 1 13 12 8 15 12 22 . 21 3 14 . Non-combat 34 | . . . . . 1 . . . . . . . . 4 . 1 1 5 2 2 . . . 3 . 2 2 7 . . 1 3 . Combat 149 | . . . . . . . . . . . . . . . . . . 18 10 2 16 1 13 9 8 13 10 15 . 21 2 11 . Autoassimilated 57 | . . . . . . . . . . . . . . . . . . 5 1 1 4 1 4 7 3 6 4 6 . 8 1 6 . Robot Hacks Applied 140 | . . . . . 1 . . . . . . . . 4 . 1 3 21 12 4 12 . 9 7 5 10 8 20 . 13 2 8 . parse_system 5 | . . . . . . . . . . . . . . . . . . . . . 2 . . 1 . . . 2 . . . . . start_evac 1 | . . . . . . . . . . . . . . . . . . . . . . . . 1 . . . . . . . . . find_chute 1 | . . . . . . . . . . . . . . . . . . 1 . . . . . . . . . . . . . . . drop_inventory 6 | . . . . . . . . . . . . . . 2 . 1 . 1 . . . . . 1 . 1 . . . . . . . purge_threat 5 | . . . . . . . . . . . . . . . . . 2 2 . 1 . . . . . . . . . . . . . locate_traps 1 | . . . . . . . . . . . . . . . . . 1 . . . . . . . . . . . . . . . . disarm_traps 1 | . . . . . . . . . . . . . . . . . . 1 . . . . . . . . . . . . . . . block_reporting 2 | . . . . . . . . . . . . . . . . . . 1 . . . . . . . . . 1 . . . . . map_route 4 | . . . . . . . . . . . . . . . . . . . . 1 . . . . . 1 . 1 . . 1 . . disable_scanner 1 | . . . . . . . . . . . . . . . . . . . . . . . . . . . 1 . . . . . . find_garrison 1 | . . . . . . . . . . . . . . . . . . 1 . . . . . . . . . . . . . . . reboot_propulsion 2 | . . . . . . . . . . . . . . . . . . . . . . . . . . . . 2 . . . . . amplify_resonance 11 | . . . . . . . . . . . . . . . . . . 1 3 . 1 . . . 1 2 1 2 . . . . . overwrite_iff 4 | . . . . . . . . . . . . . . . . . . 1 . . 1 . . . . 1 . . . . 1 . . formatsys_low 16 | . . . . . 1 . . . . . . . . 2 . . . 1 1 1 . . . 1 . . 2 5 . . . 2 . formatsys_high 79 | . . . . . . . . . . . . . . . . . . 11 8 1 8 . 9 3 4 5 4 7 . 13 . 6 . Relay Couplers Released 97 | . . . . 5 . . . 5 . . . . 5 . 5 . . . 9 . 16 . 18 1 4 . . . . 29 . . . Machine Destruction 97 | . . . . 5 . . . 5 . . . . 5 . 5 . . . 9 . 16 . 18 1 4 . . . . 29 . . . Attached 47 | . . . . . 1 . . . . . . . . 1 . . 1 4 4 . 2 . 7 . 2 2 3 3 . 15 . 2 . Crosswired 28 | . . . . . . . . . . . . . . . . . . . . . 5 . 5 . 2 . 1 . . 15 . . . Merged Code Value 74 | . . . . . . . . . . . . . . . . . . . . . . . . . . . . . . 61 . 13 . Fabnet Peak Effective % . | . . . . . . . . . . . . . . . . . . . . . . . . . . . . . . . . . . Robots Rewired 42 | . . . . 2 . . . 2 15 . . . . . . . 1 . 4 . 6 . . . . . . . . 12 . . . Allies Hacked 4 | . . . . . . . . . . . . . . 1 1 . . . . . 1 . . . . . . . . . . 1 . Hacks Repelled . | . . . . . . . . . . . . . . . . . . . . . . . . . . . . . . . . . . Allies | -11 -10 -10 -8 -8 -7 -7 -6 -6 -6 -6 -6 -6 -6 -5 -5 -5 -5 -4 -4 -4 -4 -4 -4 -3 -3 -2 -2 -2 -1 -1 -1 -1 -1 -------- Run | Yrd Mat Sub Mat Gar Fac Gar Fac Gar Ext Cet Arc Hub Gar Fac Gar Fac Gar Fac Gar Fac Gar Fac Gar Res Gar Res Qua Frg Acc Gar Acc Com Ac0 Total Allies 232 | . . . . 2 1 2 . 4 18 . . . . 3 1 . 5 18 15 4 23 1 14 11 9 12 10 21 . 38 2 18 . Largest Group 23 | . . . . 2 3 4 1 3 17 7 1 . . 1 1 . 2 11 12 13 23 21 16 17 18 20 15 18 1 20 18 8 . Highest-Rated Group 1499 | . . . . 62 85 116 22 262 682 198 34 . . 79 38 . 165 660 840 840 1338 1181 982 759 951 1006 1064 1499 42 1372 1209 666 . Highest-Rated Ally 344 | . . . . 31 31 31 22 148 148 39 34 . . 79 38 . 85 142 142 142 142 142 142 64 80 183 344 344 42 219 219 212 . Total Orders 65 | . . . . . 1 5 1 . 6 . . . . 2 . . . 1 4 . 4 . 2 1 1 2 1 7 . 21 . 6 . STAY 20 | . . . . . . . . . 2 . . . . . . . . . 1 . 1 . 1 . . . . . . 12 . 3 . FOLLOW 18 | . . . . . . . . . 4 . . . . . . . . . 1 . 2 . 1 . . . . . . 9 . 1 . GUARD 1 | . . . . . . . . . . . . . . . . . . . . . 1 . . . . . . . . . . . . AID 26 | . . . . . 1 5 1 . . . . . . 2 . . . 1 2 . . . . 1 1 2 1 7 . . . 2 . Ally Attacks 1912 | . . . . . 12 37 . 17 100 51 7 . . 9 3 . 25 81 63 50 126 15 131 101 101 190 139 266 . 159 56 173 . Total Damage 66937 | . . . . . 141 509 . 784 2521 789 78 . . 375 130 . 449 3350 2017 1969 3785 347 5107 2479 4329 5442 3979 10796 . 6595 2138 8828 . Kills 288 | . . . . . 1 6 . 1 17 5 1 . . 2 . . 1 17 16 13 21 3 21 21 18 18 19 35 . 20 9 23 . Allies Corrupted 21 | . . . . . . . . . . . . . . . . . . 2 . 1 . . 1 . . 1 3 6 . 1 1 5 . Allies Melted 4 | . . . . . . 1 . . . . . . . . . . 1 . 1 . . . . . . . . 1 . . . . . X0-1V1 Amusement Gains 340 | . 11 15 5 . . . . 30 10 20 . . 30 35 19 . . 4 . 1 . . . . . . . 45 10 30 10 35 30 Good Acts 202 | . . 4 7 6 1 10 8 3 2 . 3 1 14 10 12 4 7 6 8 2 10 1 6 1 3 3 5 11 . 16 1 30 7 Bad Acts 97 | . . . 6 . . 2 1 6 6 6 1 2 2 2 . . 3 6 7 2 . . 3 2 2 5 6 12 . 5 2 6 2 Intel | -11 -10 -10 -8 -8 -7 -7 -6 -6 -6 -6 -6 -6 -6 -5 -5 -5 -5 -4 -4 -4 -4 -4 -4 -3 -3 -2 -2 -2 -1 -1 -1 -1 -1 ------- Run | Yrd Mat Sub Mat Gar Fac Gar Fac Gar Ext Cet Arc Hub Gar Fac Gar Fac Gar Fac Gar Fac Gar Fac Gar Res Gar Res Qua Frg Acc Gar Acc Com Ac0 Active Infowar (turns) 14698 | . . . 915 . . . . . . . . . . . . 13 1125 97 . . . . 2 . . 461 1338 2372 44 2551 239 5033 508 Optics 13461 | . . . 915 . . . . . . . . . . . . . . . . . . . . . . 461 1338 2372 44 2551 239 5033 508 Sensors 3 | . . . . . . . . . . . . . . . . . . . . . . . 2 . . . . . . . . 1 . Machine Analysis 97 | . . . . . . . . . . . . . . . . . . 97 . . . . . . . . . . . . . . . Jamming 1143 | . . . . . . . . . . . . . . . . 13 1125 . . . . . . . . . . 5 . . . . . Robot Analysis Total . | . . . . . . . . . . . . . . . . . . . . . . . . . . . . . . . . . . Derelict Logs Recovered 2 | . . 2 . . . . . . . . . . . . . . . . . . . . . . . . . . . . . . . Drone Launches . | . . . . . . . . . . . . . . . . . . . . . . . . . . . . . . . . . . Drone Recoveries . | . . . . . . . . . . . . . . . . . . . . . . . . . . . . . . . . . . Exploration | -11 -10 -10 -8 -8 -7 -7 -6 -6 -6 -6 -6 -6 -6 -5 -5 -5 -5 -4 -4 -4 -4 -4 -4 -3 -3 -2 -2 -2 -1 -1 -1 -1 -1 ------------- Run | Yrd Mat Sub Mat Gar Fac Gar Fac Gar Ext Cet Arc Hub Gar Fac Gar Fac Gar Fac Gar Fac Gar Fac Gar Res Gar Res Qua Frg Acc Gar Acc Com Ac0 Turns Passed 38465 | 70 493 940 1423 622 333 1412 665 1380 1470 362 143 226 1587 1626 1284 391 1683 1788 1888 449 1754 53 1763 751 838 983 1338 2372 44 2551 239 5033 511 Spaces Moved 17403 | 49 280 542 646 352 172 683 270 670 758 157 53 98 721 677 654 233 790 820 842 208 755 15 780 332 343 404 566 940 20 1148 118 2146 161 Core 21 | 15 . . . . . . . . . . . . . . . . . . . . . . . . . . . . . . . . 6 Treads 13696 | . 101 542 178 . . . . . . 57 53 98 721 677 654 233 790 820 842 208 755 15 780 332 343 404 566 940 20 1148 118 2146 155 Legs 213 | 34 179 . . . . . . . . . . . . . . . . . . . . . . . . . . . . . . . . Wheels 3473 | . . . 468 352 172 683 270 670 758 100 . . . . . . . . . . . . . . . . . . . . . . . Hover . | . . . . . . . . . . . . . . . . . . . . . . . . . . . . . . . . . . Flight . | . . . . . . . . . . . . . . . . . . . . . . . . . . . . . . . . . . Fastest Speed 50 | 50 120 160 115 130 145 160 175 130 130 115 160 160 160 160 152 152 152 160 160 200 160 200 160 200 200 200 185 152 194 145 145 138 50 Average Speed 176 | 112 134 160 145 132 159 160 175 169 130 141 160 160 160 160 152 152 158 176 196 200 199 200 198 200 200 200 195 197 194 170 184 208 195 Slowest Speed 240 | 190 160 160 240 145 160 175 175 175 130 240 160 160 160 160 160 152 160 240 200 200 200 200 200 200 212 200 240 225 194 194 185 225 218 Overloaded Moves . | . . . . . . . . . . . . . . . . . . . . . . . . . . . . . . . . . . Propulsion Burnouts . | . . . . . . . . . . . . . . . . . . . . . . . . . . . . . . . . . . Robots Hopped . | . . . . . . . . . . . . . . . . . . . . . . . . . . . . . . . . . . Potential Cave-ins . | . . . . . . . . . . . . . . . . . . . . . . . . . . . . . . . . . . Cave-ins Triggered . | . . . . . . . . . . . . . . . . . . . . . . . . . . . . . . . . . . Teleports 5 | . . . . . . . . . . . . . . . . . . . . . . . . . . . 2 1 . . . 1 1 Exploration Rate (%) 45 | 4 50 36 56 45 5 96 12 65 82 59 71 10 78 21 79 12 81 24 95 11 91 1 92 10 59 13 67 47 2 95 6 57 14 Regions Visited 33 Branch Regions 9 Pre-discovered Areas . | . . . . . . . . . . . . . . . . . . . . . . . . . . . . . . . . . . Known Exits Taken 14 | . . 1 1 . 1 . 1 . . . . 1 . 1 . 1 . 1 . 1 . 1 . 1 . . . 1 1 . . 1 . Unknown Exits Taken 8 | 1 1 . . . . . . . 1 1 1 . . . . . . . . . . . . . . 1 1 . . . 1 . . Scrap Searched 3 | . . 3 . . . . . . . . . . . . . . . . . . . . . . . . . . . . . . . Spaces Dug 66 | . . . 2 1 . . 4 6 2 . . . 6 3 10 1 2 1 3 . . 1 . 1 . . . 13 . 5 . 5 . Terrain Destroyed 892 | . . 88 83 46 1 9 25 56 18 8 2 3 132 23 25 1 11 120 6 . 2 1 12 2 4 8 14 59 . 14 10 17 92 Melee . | . . . . . . . . . . . . . . . . . . . . . . . . . . . . . . . . . . Projectile 420 | . . . 21 9 1 9 15 12 18 8 2 3 24 23 25 1 11 7 6 . 2 1 12 2 4 8 14 49 . 14 10 17 92 AOE 472 | . . 88 62 37 . . 10 44 . . . . 108 . . . . 113 . . . . . . . . . 10 . . . . . Terrain Rammed . | . . . . . . . . . . . . . . . . . . . . . . . . . . . . . . . . . . Walls Destroyed . | . . . . . . . . . . . . . . . . . . . . . . . . . . . . . . . . . . Machines Disabled . | . . . . . . . . . . . . . . . . . . . . . . . . . . . . . . . . . . Actions | -11 -10 -10 -8 -8 -7 -7 -6 -6 -6 -6 -6 -6 -6 -5 -5 -5 -5 -4 -4 -4 -4 -4 -4 -3 -3 -2 -2 -2 -1 -1 -1 -1 -1 --------- Run | Yrd Mat Sub Mat Gar Fac Gar Fac Gar Ext Cet Arc Hub Gar Fac Gar Fac Gar Fac Gar Fac Gar Fac Gar Res Gar Res Qua Frg Acc Gar Acc Com Ac0 Total 22751 | 61 339 596 899 445 216 884 379 836 1151 255 90 137 1014 1102 807 255 1081 1107 1049 240 978 36 921 402 462 517 728 1253 24 1550 134 2538 265 Wait 2092 | . 21 34 51 11 16 71 32 47 185 34 16 8 141 255 41 8 94 141 98 10 144 20 39 41 82 31 47 93 . 157 4 108 12 Move 17379 | 48 279 541 646 351 172 682 270 669 757 156 52 98 719 677 653 233 789 819 841 208 754 15 779 332 342 403 565 939 20 1147 117 2145 161 Hop . | . . . . . . . . . . . . . . . . . . . . . . . . . . . . . . . . . . Pick Up 278 | 7 3 7 18 4 4 7 5 12 5 7 1 . 13 15 9 2 13 16 14 4 9 . 6 3 3 5 12 10 . 24 . 37 3 Fast Attach 178 | 5 1 2 16 5 2 12 3 . 4 7 2 2 3 6 3 . 9 6 2 2 1 . 10 1 2 3 8 12 2 23 2 18 4 Attach 139 | 1 . . 5 . 2 1 2 4 3 5 1 1 9 11 1 2 10 10 3 . 1 . 1 2 1 5 6 13 1 9 1 20 8 Detach 32 | . . . 5 . 1 1 . . . 5 . . 1 . . . 2 3 . . . . . . . 1 1 5 . 1 1 3 2 Swap 179 | . 4 4 10 1 8 2 3 4 . 1 . . 1 8 12 1 7 16 4 5 2 . 12 1 3 5 16 14 . 16 . 15 4 Drop 313 | . 2 . 22 5 3 25 7 9 1 10 1 2 9 10 13 2 15 17 12 5 5 . 14 2 5 4 19 9 1 25 2 53 4 Fire 1805 | . 28 8 126 45 6 70 57 59 60 30 17 26 118 105 75 7 142 73 53 6 54 1 49 20 24 37 54 151 . 136 7 94 67 Melee 4 | . . . . . 2 . . . . . . . . 2 . . . . . . . . . . . . . . . . . . . Ram 1 | . . . . . . . . . . . . . . . . . . . 1 . . . . . . . . . . . . . . Kick . | . . . . . . . . . . . . . . . . . . . . . . . . . . . . . . . . . . Crush 49 | . 1 . . . . . . . . . . . . 1 . . . . 3 . . . . . . 3 . . . 1 . 40 . Escape Stasis 130 | . . . . 16 . 12 . 32 24 . . . . . . . . 4 14 . 2 . 10 . . . . 4 . 10 . 2 . Rewire 142 | . . . . 7 . 1 . . 112 . . . . . . . . 2 4 . 6 . 1 . . 2 . 3 . 1 . 3 . Trap 12 | . . . . . . . . . . . . . . 12 . . . . . . . . . . . . . . . . . . . Miscellaneous 18 | . . . . . . . . . . . . . . . . . . . . . . . . . . 18 . . . . . . . Route ------- -11/Scrapyard -10/Materials (discovered 2 exits: [*Mat] / *Sub) -10/Subcaves (discovered 3 exits: *Mat x2 / Rec) -8/Materials (discovered 4 exits: *Fac x3 / Gar) -8/Garrison (discovered 4 exits: *Fac x3 / [Mat]) -7/Factory -7/Garrison (discovered 3 exits: *Fac x3) -6/Factory (discovered 3 exits: *Fac x2 / Gar) -6/Garrison (discovered 3 exits: [*Ext x3]) -6/Extension (discovered 3 exits: *Fac x2 / [*Cet]) -6/Cetus (discovered 2 exits: *Fac / [*Arc]) -6/Archives (discovered 2 exits: *Fac / *Hub) -6/Hub_04(d) -6/Garrison (discovered 3 exits: *Fac x3) -5/Factory (discovered 3 exits: *Fac / [*Upp] / Gar) -5/Garrison (discovered 3 exits: *Fac x3) -5/Factory -5/Garrison (discovered 3 exits: *Fac x3) -4/Factory (discovered 4 exits: *Res / [*Upp x2] / Gar) -4/Garrison (discovered 2 exits: *Fac x2) -4/Factory -4/Garrison (discovered 4 exits: *Res x3 / *Fac) -4/Factory -4/Garrison (discovered 3 exits: *Res x3) -3/Research (discovered 2 exits: Gar / Gar) -3/Garrison -2/Research (discovered 2 exits: *Qua x2) -2/Quarantine (discovered 3 exits: *Acc / [*Sec] / *Frg) -2/Protoforge -1/Access -1/Garrison (discovered 3 exits: [*Acc x3]) -1/Access -1/Command (discovered 3 exits: Sur x2 / *Ac0) -1/Access_0 (discovered 1 exit: *Sur) History --------- Turn | Location | Event 15 | -11/Scrapyard | Discovered new exit (range 16) 71 | -11/Scrapyard | Entered Materials 243 | -10/Materials | Discovered new exit (range 16) 318 | -10/Materials | Build established: Mutant 548 | -10/Materials | Discovered new exit (range 8) 561 | -10/Materials | Prayed at D.C.S.S. Altar Unit 564 | -10/Materials | Entered Subcaves 565 | -10/Subcaves | Approached by a straggling Scientist 599 | -10/Subcaves | Learned Materials stockpile data 615 | -10/Subcaves | Heat dissipation permanently improved by X0-1V1 (+15; -75 max core) 679 | -10/Subcaves | Identified exit to Recycling 679 | -10/Subcaves | X0-1V1 revealed exit location to -9/Recycling 953 | -10/Subcaves | Learned 8 Materials zone layouts 987 | -10/Subcaves | Visited Clippyterm 991 | -10/Subcaves | Identified exit to Materials 1368 | -10/Subcaves | Shifting Twisted Machinery released Barrage Gun 1487 | -10/Subcaves | Shifting Twisted Machinery released Riot Gun 1504 | -10/Subcaves | Entered Materials 1504 | -8/Materials | Evolved 4 slots: Propulsion x1, Utility x2, Weapon x1 1505 | -8/Materials | Identified exit to Factory 1818 | -8/Materials | Build established: Skirmisher 1831 | -8/Materials | Central database locked down 2042 | -8/Materials | Weapon slot count temporarily expanded by X0-1V1 (+3) 2101 | -8/Materials | X0-1V1 added 0b10 threat records associated with you (considerable) 2867 | -8/Materials | Build established: Bomber 2927 | -8/Materials | Identified exit to Garrison 2927 | -8/Materials | Entered Garrison 3017 | -8/Garrison | Triggered checkpoint 3111 | -8/Garrison | Triggered checkpoint 3141 | -8/Garrison | Triggered checkpoint 3151 | -8/Garrison | Triggered checkpoint 3212 | -8/Garrison | Discovered exit to Factory (range 36) 3212 | -8/Garrison | Discovered exit to Factory (range 26) 3212 | -8/Garrison | Discovered exit to Factory (range 45) 3212 | -8/Garrison | Discovered new exit (range 34) 3364 | -8/Garrison | Installed Relay Interface Framework 3403 | -8/Garrison | Triggered checkpoint 3493 | -8/Garrison | Melee accuracy permanently improved by X0-1V1 (+9%; -90 max core) 3504 | -8/Garrison | Garrison Relay disabled 3549 | -8/Garrison | Entered Factory 3549 | -7/Factory | Accompanied by 2 allies 3549 | -7/Factory | Evolved 2 slots: Utility x2 3698 | -7/Factory | X0-1V1 released a cloud of subatomizers 3882 | -7/Factory | Identified exit to Garrison 3882 | -7/Factory | Entered Garrison 3882 | -7/Garrison | Accompanied by 3 allies 3920 | -7/Garrison | Build established: Scavenger-Mutant 3920 | -7/Garrison | X0-1V1 destroyed Phase Generator 3920 | -7/Garrison | Phase Generator disabled 4058 | -7/Garrison | Triggered checkpoint 4112 | -7/Garrison | Triggered checkpoint 4114 | -7/Garrison | Triggered checkpoint 4206 | -7/Garrison | Triggered checkpoint 4270 | -7/Garrison | Triggered checkpoint 4309 | -7/Garrison | Rescued a captive Derelict 4310 | -7/Garrison | Rescued a captive Derelict 4321 | -7/Garrison | Expanded RIF knowledge: Autoassimilate 4376 | -7/Garrison | Discovered new exit (range 8) 4397 | -7/Garrison | Expanded RIF knowledge: Program Shield 4815 | -7/Garrison | X0-1V1 mutated your Propulsion slot to Utility slot 4822 | -7/Garrison | Expanded RIF knowledge: Threat Obfuscation 4855 | -7/Garrison | Ranged accuracy permanently improved by X0-1V1 (+8%; -80 max core) 4903 | -7/Garrison | Discovered new exit (range 12) 5046 | -7/Garrison | Triggered checkpoint 5072 | -7/Garrison | X0-1V1 activates XOMVISION 5142 | -7/Garrison | Triggered checkpoint 5190 | -7/Garrison | Discovered new exit (range 72) 5190 | -7/Garrison | Discovered new exit (range 20) 5190 | -7/Garrison | Discovered new exit (range 54) 5294 | -7/Garrison | Entered Factory 5294 | -6/Factory | Accompanied by 1 ally 5294 | -6/Factory | Evolved 2 slots: Propulsion x1, Utility x1 5618 | -6/Factory | Build established: Tank 5644 | -6/Factory | First assault squad dispatched 5655 | -6/Factory | Discovered new exit (range 7) 5726 | -6/Factory | Identified exit to Factory 5726 | -6/Factory | X0-1V1 revealed exit location to -5/Factory 5864 | -6/Factory | X0-1V1 added 0b10 threat records associated with you (major) 5919 | -6/Factory | X0-1V1 activates XOMVISION 5959 | -6/Factory | Identified exit to Garrison 5959 | -6/Factory | Entered Garrison 6081 | -6/Garrison | Triggered checkpoint 6092 | -6/Garrison | X0-1V1 destroyed Phase Generator 6092 | -6/Garrison | Phase Generator disabled 6333 | -6/Garrison | Triggered checkpoint 6418 | -6/Garrison | Garrison Relay disabled 6565 | -6/Garrison | Triggered checkpoint 6599 | -6/Garrison | Destroyed 12 combat bots 6726 | -6/Garrison | Discovered new exit (range 13) 6733 | -6/Garrison | Build established: Bothacker-Tank 6739 | -6/Garrison | Discovered new exit (range 104) 6739 | -6/Garrison | Discovered new exit (range 67) 6739 | -6/Garrison | Discovered new exit (range 11) 6907 | -6/Garrison | Spotted B-90 Cyclops 6963 | -6/Garrison | Triggered checkpoint 7009 | -6/Garrison | Rescued a captive Derelict 7011 | -6/Garrison | Rescued a captive Derelict 7113 | -6/Garrison | Spotted B-75 Beast 7122 | -6/Garrison | Destroyed B-75 Beast 7156 | -6/Garrison | Rewired B-75 Beast 7161 | -6/Garrison | Rewired B-90 Cyclops 7183 | -6/Garrison | Build established: Bothacker-Bomber 7200 | -6/Garrison | Allies destroyed B-90 Cyclops 7206 | -6/Garrison | X0-1V1 mutated your Weapon slot to Propulsion slot 7339 | -6/Garrison | Entered Extension 7339 | -6/Extension | Accompanied by 2 allies 7345 | -6/Extension | X0-1V1 dreamt of freedom 7347 | -6/Extension | Rescued a captive Derelict 7353 | -6/Extension | Rescued a captive Derelict 7355 | -6/Extension | Rescued a captive Derelict 7360 | -6/Extension | Rescued a captive Derelict 7363 | -6/Extension | Rescued a captive Derelict 7364 | -6/Extension | Rescued a captive Derelict 7366 | -6/Extension | Rescued a captive Derelict 7367 | -6/Extension | Rescued a captive Derelict 7370 | -6/Extension | Rescued a captive Derelict 7371 | -6/Extension | Rescued a captive Derelict 7374 | -6/Extension | Rescued a captive Derelict 7375 | -6/Extension | Rescued a captive Derelict 7378 | -6/Extension | Rescued a captive Derelict 7383 | -6/Extension | Rescued a captive Derelict 7383 | -6/Extension | Rescued a captive Derelict 7386 | -6/Extension | Rescued a captive Derelict 7484 | -6/Extension | Spotted B-75 Beast 7489 | -6/Extension | Build established: Bothacker-Mutant 7506 | -6/Extension | Allies destroyed B-75 Beast 7517 | -6/Extension | Discovered exit to Factory (range 15) 7517 | -6/Extension | Spotted B-75 Beast 7601 | -6/Extension | Extracted ID and sensor layout for unrecognized location from A7's data core 8281 | -6/Extension | Build established: Commander-Mutant 8563 | -6/Extension | Discovered exit to Factory (range 10) 8564 | -6/Extension | Discovered new exit (range 6) 8739 | -6/Extension | First assault squad dispatched 8789 | -6/Extension | Disrupted transfer network 8806 | -6/Extension | Lost 9 allies 8809 | -6/Extension | Entered Cetus 8809 | -6/Cetus | Accompanied by 7 allies 8843 | -6/Cetus | Spotted Cetus Guard 8843 | -6/Cetus | Spotted Cetus Guard 8845 | -6/Cetus | Spotted Cetus Guard 8847 | -6/Cetus | Allies destroyed Cetus Guard 8854 | -6/Cetus | Destroyed Cetus Guard 8855 | -6/Cetus | Allies destroyed Cetus Guard 8855 | -6/Cetus | Spotted Cetus Guard 8876 | -6/Cetus | Destroyed Cetus Guard 8953 | -6/Cetus | Discovered new exit (range 15) 8962 | -6/Cetus | X0-1V1 vaporized surrounding terrain (radius 20) 8973 | -6/Cetus | X0-1V1 added 0b10 threat records associated with you (considerable) 8999 | -6/Cetus | Spotted Cetus Guard 8999 | -6/Cetus | Spotted Cetus Guard 9002 | -6/Cetus | Spotted Cetus Guard 9011 | -6/Cetus | Allies destroyed Cetus Guard 9016 | -6/Cetus | Destroyed Cetus Guard 9017 | -6/Cetus | Allies destroyed Cetus Guard 9031 | -6/Cetus | Destroyed Cetus Guard 9044 | -6/Cetus | X0-1V1 rewrote 2N-WBR(g) IFF filter 9061 | -6/Cetus | Discovered exit to Factory (range 15) 9073 | -6/Cetus | Lost 4 allies 9073 | -6/Cetus | Met Revision 17 9077 | -6/Cetus | Build established: Bothacker-Mutant 9171 | -6/Cetus | Entered Archives 9171 | -6/Archives | Accompanied by 1 ally 9202 | -6/Archives | Core integrity restored by X0-1V1 (+114) 9271 | -6/Archives | Discovered exit to Factory (range 15) 9293 | -6/Archives | Discovered new exit (range 13) 9314 | -6/Archives | Entered Hub_04(d) 9394 | -6/Hub_04(d) | Garrison activated, responded to threat 9540 | -6/Hub_04(d) | Identified exit to Garrison 9540 | -6/Hub_04(d) | Entered Garrison 9581 | -6/Garrison | Expanded RIF knowledge: Alert ID Control 9651 | -6/Garrison | Spotted B-75 Beast 9682 | -6/Garrison | Weapon slot count temporarily expanded by X0-1V1 (+5) 9709 | -6/Garrison | Destroyed 7 combat bots 9724 | -6/Garrison | Destroyed B-75 Beast 9760 | -6/Garrison | Triggered checkpoint 9832 | -6/Garrison | Triggered checkpoint 9841 | -6/Garrison | Triggered checkpoint 9852 | -6/Garrison | X0-1V1 downgraded hostiles (x4) 9885 | -6/Garrison | Destroyed 7 combat bots 9886 | -6/Garrison | Lost 4 parts (2u2w) 9950 | -6/Garrison | Core integrity restored by X0-1V1 (+157) 9991 | -6/Garrison | Discovered exit to Factory (range 10) 10046 | -6/Garrison | Triggered checkpoint 10105 | -6/Garrison | Garrison Relay disabled 10214 | -6/Garrison | Triggered checkpoint 10348 | -6/Garrison | Triggered checkpoint 10421 | -6/Garrison | Build established: Botlord-Mutant 10471 | -6/Garrison | Discovered exit to Factory (range 12) 10705 | -6/Garrison | Discovered exit to Factory (range 13) 10724 | -6/Garrison | Triggered checkpoint 10974 | -6/Garrison | Phase Generator disabled 11127 | -6/Garrison | Entered Factory 11127 | -5/Factory | Evolved 2 slots: Utility x1, Weapon x1 12027 | -5/Factory | First assault squad dispatched 12055 | -5/Factory | Discovered new exit (range 13) 12094 | -5/Factory | X0-1V1 activates XOMVISION 12213 | -5/Factory | Build established: Botlord-Tank 12322 | -5/Factory | Lost 3 parts (2u1w) 12347 | -5/Factory | X0-1V1 sent allied Chaos Knight 2.0 (x1) 12446 | -5/Factory | Lost 3 parts (1n2u) 12619 | -5/Factory | Build established: Bothacker-Tank 12683 | -5/Factory | Discovered new exit (range 7) 12688 | -5/Factory | Weapon slot count temporarily expanded by X0-1V1 (+3) 12753 | -5/Factory | Identified exit to Garrison 12753 | -5/Factory | Entered Garrison 12792 | -5/Garrison | Assembled breached garrison interior 12934 | -5/Garrison | Spotted B-75 Beast 12971 | -5/Garrison | X0-1V1 whisked you away to safety 13163 | -5/Garrison | Destroyed B-75 Beast 13243 | -5/Garrison | Discovered new exit (range 16) 13330 | -5/Garrison | X0-1V1 destroyed Phase Generator 13330 | -5/Garrison | Phase Generator disabled 13696 | -5/Garrison | Rescued a captive Derelict 13697 | -5/Garrison | Rescued a captive Derelict 13735 | -5/Garrison | Identified exit to Factory 13735 | -5/Garrison | X0-1V1 revealed exit location to -5/Factory 13752 | -5/Garrison | Discovered exit to Factory (range 8) 13800 | -5/Garrison | Found Relay Coupler [Proto] 13802 | -5/Garrison | Found Relay Coupler [Proto] 13912 | -5/Garrison | X0-1V1 activates XOMVISION 14016 | -5/Garrison | Expanded RIF knowledge: Coupler Efficiency 14037 | -5/Garrison | Entered Factory 14101 | -5/Factory | Build established: Botlord-Tank 14298 | -5/Factory | X0-1V1 foreshadows a heat wave 14337 | -5/Factory | First assault squad dispatched 14428 | -5/Factory | Identified exit to Garrison 14428 | -5/Factory | Entered Garrison 14478 | -5/Garrison | Triggered checkpoint 14643 | -5/Garrison | Spotted B-75 Beast 14673 | -5/Garrison | Core integrity fell below 50% 14675 | -5/Garrison | System corruption reached 10% 14707 | -5/Garrison | Lost 5 parts (1p2n2u) 14772 | -5/Garrison | Triggered checkpoint 14775 | -5/Garrison | X0-1V1 sent allied G-50 Soldier (x2) 14784 | -5/Garrison | Triggered checkpoint 14890 | -5/Garrison | Triggered checkpoint 15196 | -5/Garrison | Heavy support dispatched to Factory 15231 | -5/Garrison | Discovered new exit (range 12) 15369 | -5/Garrison | Expanded RIF knowledge: Structural Interface 15542 | -5/Garrison | Discovered new exit (range 18) 15542 | -5/Garrison | Discovered new exit (range 61) 15542 | -5/Garrison | Discovered new exit (range 44) 15564 | -5/Garrison | Core integrity restored by X0-1V1 (+143) 15694 | -5/Garrison | Found embedded Infiltrators 15794 | -5/Garrison | H-XX Assembler disabled 16026 | -5/Garrison | Spotted B-90 Cyclops 16032 | -5/Garrison | Destroyed B-90 Cyclops 16050 | -5/Garrison | Rewired B-75 Beast 16111 | -5/Garrison | Entered Factory 16111 | -4/Factory | Accompanied by 2 allies 16111 | -4/Factory | Evolved 2 slots: Utility x2 16175 | -4/Factory | X0-1V1 added 0b10 threat records associated with you (minor) 16248 | -4/Factory | Discovered new exit (range 6) 16406 | -4/Factory | Discovered new exit (range 14) 16525 | -4/Factory | X0-1V1 activates XOMVISION 16638 | -4/Factory | X0-1V1 added 0b10 threat records associated with you (major) 16701 | -4/Factory | X0-1V1 enhanced Transport squad support 17611 | -4/Factory | First assault squad dispatched 17748 | -4/Factory | Discovered new exit (range 14) 17878 | -4/Factory | Garrison activated, responded to threat 17886 | -4/Factory | Identified exit to Garrison 17899 | -4/Factory | Entered Garrison 17899 | -4/Garrison | Accompanied by 5 allies 17917 | -4/Garrison | Lost 9 allies 17954 | -4/Garrison | Garrison Relay disabled 17965 | -4/Garrison | Triggered checkpoint 18035 | -4/Garrison | X0-1V1 rewrote Assassin 7g IFF filter 18051 | -4/Garrison | Spotted Executioner 18053 | -4/Garrison | Spotted Striker 18056 | -4/Garrison | System corruption reached 10% 18192 | -4/Garrison | Triggered checkpoint 18197 | -4/Garrison | Triggered checkpoint 18203 | -4/Garrison | Triggered checkpoint 18237 | -4/Garrison | Lost 3 allies 18329 | -4/Garrison | Identified exit to Factory 18329 | -4/Garrison | X0-1V1 revealed exit location to -4/Factory 18361 | -4/Garrison | Triggered checkpoint 18362 | -4/Garrison | Garrison Relay disabled 18392 | -4/Garrison | Spotted B-75 Beast 18401 | -4/Garrison | Rewired B-75 Beast 18405 | -4/Garrison | Destroyed B-75 Beast 18549 | -4/Garrison | Expanded RIF knowledge: Command Fork 18831 | -4/Garrison | Triggered checkpoint 18861 | -4/Garrison | Discovered exit to Factory (range 18) 19138 | -4/Garrison | Garrison Relay disabled 19191 | -4/Garrison | Triggered checkpoint 19457 | -4/Garrison | X0-1V1 sent you into danger 19460 | -4/Garrison | Assimilated Striker with formatsys_high 19463 | -4/Garrison | Assimilated Executioner with formatsys_high 19701 | -4/Garrison | Found Relay Coupler [Proto] 19704 | -4/Garrison | Found Relay Coupler [Proto] 19707 | -4/Garrison | Found Relay Coupler [Proto] 19787 | -4/Garrison | Entered Factory 19787 | -4/Factory | Accompanied by 12 allies 19865 | -4/Factory | X0-1V1 sent you to a vault 19875 | -4/Factory | Found Adv. Powered Armor 19894 | -4/Factory | X0-1V1 sent you into danger 20046 | -4/Factory | Found Prototype Device 20046 | -4/Factory | Identified Adv. Kinecellerator 20050 | -4/Factory | Found Prototype Processor 20050 | -4/Factory | Identified Exp. Targeting Computer 20113 | -4/Factory | X0-1V1 activates XOMVISION 20185 | -4/Factory | X0-1V1 added 0b10 threat records associated with you (considerable) 20227 | -4/Factory | Identified exit to Garrison 20236 | -4/Factory | Entered Garrison 20236 | -4/Garrison | Accompanied by 11 allies 20270 | -4/Garrison | Found embedded Infiltrators 20286 | -4/Garrison | Triggered checkpoint 20331 | -4/Garrison | Garrison Relay disabled 20445 | -4/Garrison | Spotted B-86 Titan 20452 | -4/Garrison | Triggered checkpoint 20464 | -4/Garrison | Triggered checkpoint 20468 | -4/Garrison | Destroyed B-86 Titan 20488 | -4/Garrison | Triggered checkpoint 20552 | -4/Garrison | Discovered new exit (range 10) 20560 | -4/Garrison | Triggered checkpoint 20564 | -4/Garrison | Triggered checkpoint 20607 | -4/Garrison | Garrison Relay disabled 20736 | -4/Garrison | Garrison Relay disabled 20778 | -4/Garrison | X0-1V1 activates XOMVISION 20934 | -4/Garrison | Discovered new exit (range 14) 20966 | -4/Garrison | Expanded RIF knowledge: Crosswire 21058 | -4/Garrison | Triggered checkpoint 21074 | -4/Garrison | Discovered new exit (range 6) 21308 | -4/Garrison | Triggered checkpoint 21427 | -4/Garrison | X0-1V1 downgraded hostiles (x1) 21470 | -4/Garrison | Lost 6 allies 21560 | -4/Garrison | Triggered checkpoint 21609 | -4/Garrison | Lost 3 allies 21630 | -4/Garrison | Garrison Relay disabled 21705 | -4/Garrison | Discovered new exit (range 8) 21729 | -4/Garrison | Discovered new exit (range 86) 21729 | -4/Garrison | Discovered new exit (range 10) 21729 | -4/Garrison | Discovered new exit (range 74) 21729 | -4/Garrison | Discovered new exit (range 37) 21807 | -4/Garrison | X0-1V1 activates XOMVISION 21990 | -4/Garrison | Entered Factory 21990 | -4/Factory | Accompanied by 20 allies 22007 | -4/Factory | Garrison activated, responded to threat 22023 | -4/Factory | Identified exit to Garrison 22041 | -4/Factory | Lost 5 allies 22043 | -4/Factory | Entered Garrison 22043 | -4/Garrison | Accompanied by 16 allies 22111 | -4/Garrison | Spotted B-86 Titan 22122 | -4/Garrison | Allies destroyed B-86 Titan 22162 | -4/Garrison | Triggered checkpoint 22185 | -4/Garrison | Triggered checkpoint 22186 | -4/Garrison | Lost 7 allies 22259 | -4/Garrison | Spotted B-86 Titan 22276 | -4/Garrison | Destroyed B-86 Titan 22375 | -4/Garrison | Triggered checkpoint 22375 | -4/Garrison | Garrison Relay disabled 22591 | -4/Garrison | Discovered new exit (range 14) 22611 | -4/Garrison | Identified exit to Research 22611 | -4/Garrison | X0-1V1 revealed exit location to -3/Research 22814 | -4/Garrison | Lost 3 allies 22880 | -4/Garrison | Expanded RIF knowledge: Robot Detection 22911 | -4/Garrison | X0-1V1 activates XOMVISION 22964 | -4/Garrison | Garrison Relay disabled 23137 | -4/Garrison | Triggered checkpoint 23185 | -4/Garrison | Triggered checkpoint 23198 | -4/Garrison | Garrison Relay disabled 23247 | -4/Garrison | Discovered exit to Research (range 15) 23311 | -4/Garrison | X0-1V1 activates XOMVISION 23399 | -4/Garrison | X0-1V1 rewrote Veteran 7m IFF filter 23413 | -4/Garrison | Garrison Relay disabled 23483 | -4/Garrison | Triggered checkpoint 23558 | -4/Garrison | Garrison Relay disabled 23684 | -4/Garrison | X0-1V1 destroyed Phase Generator 23684 | -4/Garrison | Phase Generator disabled 23806 | -4/Garrison | Entered Research 23806 | -3/Research | Accompanied by 11 allies 23806 | -3/Research | Evolved 2 slots: Power x1, Utility x1 24006 | -3/Research | Revision forces began assault on 0b10 24039 | -3/Research | Identified exit to Garrison 24045 | -3/Research | Met up with Revision 17++ 24232 | -3/Research | Lost 3 allies 24325 | -3/Research | Lost 3 allies 24506 | -3/Research | Research terminal network offline 24541 | -3/Research | Identified exit to Garrison 24557 | -3/Research | Entered Garrison 24557 | -3/Garrison | Accompanied by 12 allies 24558 | -3/Garrison | Found embedded Infiltrators 24599 | -3/Garrison | Triggered checkpoint 24650 | -3/Garrison | Garrison Relay disabled 24725 | -3/Garrison | Expanded RIF knowledge: Patrol Navigation 24772 | -3/Garrison | Spotted B-86 Titan 24776 | -3/Garrison | Triggered checkpoint 24777 | -3/Garrison | Triggered checkpoint 24778 | -3/Garrison | Allies destroyed B-86 Titan 24786 | -3/Garrison | Triggered checkpoint 24813 | -3/Garrison | Triggered checkpoint 24839 | -3/Garrison | Lost 3 allies 24987 | -3/Garrison | Triggered checkpoint 25021 | -3/Garrison | Discovered new exit (range 2) 25053 | -3/Garrison | Expanded RIF knowledge: Threat Obfuscation 25395 | -3/Garrison | Entered Research 25395 | -2/Research | Accompanied by 18 allies 25395 | -2/Research | Evolved 2 slots: Utility x2 25506 | -2/Research | X0-1V1 activates XOMVISION 25645 | -2/Research | Spotted B-90 Cyclops 25655 | -2/Research | Allies destroyed B-90 Cyclops 25878 | -2/Research | Lost 8 allies 25903 | -2/Research | Discovered new exit (range 97) 25947 | -2/Research | X0-1V1 enhanced Transport squad support 25987 | -2/Research | X0-1V1 rewrote Veteran 7q IFF filter 26181 | -2/Research | Lost 6 allies 26232 | -2/Research | X0-1V1 sent you into danger 26348 | -2/Research | X0-1V1 mutated your Utility slot to Power slot 26351 | -2/Research | Discovered new exit (range 4) 26378 | -2/Research | Entered Quarantine 26378 | -2/Quarantine | Accompanied by 10 allies 26418 | -2/Quarantine | Found Alien Artifact 26418 | -2/Quarantine | Identified Dimensional Node Initializer 26418 | -2/Quarantine | Initialized slip node 26429 | -2/Quarantine | Found Alien Artifact 26437 | -2/Quarantine | Found Alien Artifact 26438 | -2/Quarantine | Identified Transdimensional Reconstructor 26438 | -2/Quarantine | Warped through subspace to slip node 26439 | -2/Quarantine | Identified Hpw. Transdimensional Reconstructor 26439 | -2/Quarantine | Warped through subspace to slip node 26452 | -2/Quarantine | Found Transdimensional Reconstructor 26456 | -2/Quarantine | Found Hpw. Transdimensional Reconstructor 26649 | -2/Quarantine | Cryocooling Duct disabled 26664 | -2/Quarantine | Ambient heat levels rising (+20) 26664 | -2/Quarantine | Non-combat units ordered to evacuate 26786 | -2/Quarantine | Found Alien Artifact 26786 | -2/Quarantine | Identified Terrabomb 26786 | -2/Quarantine | Used Terrabomb 26805 | -2/Quarantine | Found Terrabomb 26869 | -2/Quarantine | Found Alien Energy Cannon 26917 | -2/Quarantine | Found Alien Artifact 27015 | -2/Quarantine | Found Alien Artifact 27234 | -2/Quarantine | X0-1V1 activates XOMVISION 27333 | -2/Quarantine | Discovered new exit (range 11) 27422 | -2/Quarantine | Found Alien Artifact 27422 | -2/Quarantine | Identified Phase Redirector 27480 | -2/Quarantine | Spotted Fortress 27483 | -2/Quarantine | Assimilated Fortress with formatsys_high 27659 | -2/Quarantine | Discovered new exit (range 6) 27659 | -2/Quarantine | Discovered new exit (range 6) 27716 | -2/Quarantine | Entered Protoforge 27716 | -2/Protoforge | Accompanied by 13 allies 27732 | -2/Protoforge | Spotted Hotshot 27733 | -2/Protoforge | Autoassimilated Hotshot with RIF 27733 | -2/Protoforge | Superfortress began startup sequence 27741 | -2/Protoforge | Spotted Hotshot 27743 | -2/Protoforge | Spotted Hotshot 27743 | -2/Protoforge | Spotted Hotshot 27745 | -2/Protoforge | Spotted Hotshot 27746 | -2/Protoforge | Autoassimilated Hotshot with RIF 27747 | -2/Protoforge | Allies destroyed Hotshot 27755 | -2/Protoforge | Allies destroyed Hotshot 27771 | -2/Protoforge | Allies destroyed Hotshot 27909 | -2/Protoforge | Spotted Hotshot 27912 | -2/Protoforge | Spotted Hotshot 27915 | -2/Protoforge | Spotted Hotshot 27920 | -2/Protoforge | Allies destroyed Hotshot 27923 | -2/Protoforge | Destroyed Hotshot 27930 | -2/Protoforge | Destroyed Hotshot 27976 | -2/Protoforge | Spotted Hotshot 27976 | -2/Protoforge | Spotted Hotshot 27977 | -2/Protoforge | Autoassimilated Hotshot with RIF 27981 | -2/Protoforge | Spotted Hotshot 27983 | -2/Protoforge | Spotted Hotshot 27990 | -2/Protoforge | Spotted Hotshot 27991 | -2/Protoforge | Autoassimilated Hotshot with RIF 28004 | -2/Protoforge | Allies destroyed Hotshot 28005 | -2/Protoforge | Spotted Overlord 28005 | -2/Protoforge | Destroyed Hotshot 28007 | -2/Protoforge | Allies destroyed Hotshot 28014 | -2/Protoforge | Assimilated Overlord with formatsys_high 28016 | -2/Protoforge | Identified Phase Armor 28044 | -2/Protoforge | Lost 4 parts (4u) 28113 | -2/Protoforge | Lost 5 allies 28126 | -2/Protoforge | Spotted B-90 Cyclops 28131 | -2/Protoforge | Allies destroyed B-90 Cyclops 28175 | -2/Protoforge | System corruption reached 10% 28195 | -2/Protoforge | Found Quantum Capacitor 28282 | -2/Protoforge | Identified exit to Access 28282 | -2/Protoforge | X0-1V1 revealed exit location to -1/Access 28440 | -2/Protoforge | X0-1V1 rewrote Warden 9f IFF filter 28499 | -2/Protoforge | Spotted AP7-3 28500 | -2/Protoforge | Spotted AP7-3 28533 | -2/Protoforge | Destroyed AP7-3 28537 | -2/Protoforge | Allies destroyed AP7-3 28721 | -2/Protoforge | Found Prototype Device 28721 | -2/Protoforge | Identified Cep. Weapon Articulator 28724 | -2/Protoforge | Found Cep. Weapon Articulator 28842 | -2/Protoforge | Found Prototype Device 28842 | -2/Protoforge | Identified Exp. System Purifier 28849 | -2/Protoforge | Identified Core Cannon 28858 | -2/Protoforge | Spotted Decapitator 28862 | -2/Protoforge | Destroyed Decapitator 28870 | -2/Protoforge | Spotted Executioner 28880 | -2/Protoforge | Core integrity fell below 50% 28881 | -2/Protoforge | Warped through subspace 28881 | -2/Protoforge | Spotted EXE-6 28881 | -2/Protoforge | Spotted EXE-6 28903 | -2/Protoforge | Lost 8 allies 28946 | -2/Protoforge | Destroyed EXE-6 28982 | -2/Protoforge | Core integrity fell below 20% 29004 | -2/Protoforge | Destroyed EXE-6 29059 | -2/Protoforge | X0-1V1 vaporized surrounding terrain (radius 18) 29084 | -2/Protoforge | Spotted Decapitator 29086 | -2/Protoforge | Spotted Decapitator 29133 | -2/Protoforge | Destroyed Decapitator 29133 | -2/Protoforge | Destroyed Decapitator 29175 | -2/Protoforge | Spotted EXE-6 29175 | -2/Protoforge | Spotted EXE-6 29477 | -2/Protoforge | Found Cep. Weapon Articulator 29513 | -2/Protoforge | X0-1V1 turns hostiles against one another 29726 | -2/Protoforge | X0-1V1 mutated your Propulsion slot to Utility slot 30088 | -2/Protoforge | Entered Access 30088 | -1/Access | Accompanied by 1 ally 30088 | -1/Access | Evolved 2 slots: Propulsion x1, Weapon x1 30132 | -1/Access | Identified exit to Garrison 30132 | -1/Access | Entered Garrison 30132 | -1/Garrison | Accompanied by 1 ally 30154 | -1/Garrison | Discovered new exit (range 46) 30154 | -1/Garrison | Discovered new exit (range 59) 30154 | -1/Garrison | Discovered new exit (range 76) 30164 | -1/Garrison | X0-1V1 activates XOMVISION 30298 | -1/Garrison | X0-1V1 sent allied Quarantine Guard (x3) 30298 | -1/Garrison | Triggered checkpoint 30395 | -1/Garrison | Garrison Relay disabled 30396 | -1/Garrison | Lost 4 parts (1p1u2w) 30554 | -1/Garrison | Triggered checkpoint 30624 | -1/Garrison | Spotted B-99 Colossus 30652 | -1/Garrison | Assimilated Colossus 10a with formatsys_high 30670 | -1/Garrison | Triggered checkpoint 30680 | -1/Garrison | Lost 3 parts (1u2w) 30694 | -1/Garrison | Triggered checkpoint 30697 | -1/Garrison | Triggered checkpoint 30750 | -1/Garrison | Triggered checkpoint 30819 | -1/Garrison | Expanded RIF knowledge: Command Fork 30869 | -1/Garrison | Garrison Relay disabled 30986 | -1/Garrison | Triggered checkpoint 30990 | -1/Garrison | Garrison Relay disabled 31672 | -1/Garrison | Triggered checkpoint 31681 | -1/Garrison | Garrison Relay disabled 31744 | -1/Garrison | X0-1V1 rewrote Electro 10b IFF filter 31807 | -1/Garrison | Expanded RIF knowledge: Code Merge 31960 | -1/Garrison | Triggered checkpoint 31967 | -1/Garrison | Garrison Relay disabled 32250 | -1/Garrison | Spotted B-99 Colossus 32277 | -1/Garrison | Allies destroyed B-99 Colossus 32304 | -1/Garrison | Lost 8 allies 32306 | -1/Garrison | Found Relay Coupler [Proto] 32311 | -1/Garrison | Found Relay Coupler [Proto] 32315 | -1/Garrison | Found Relay Coupler [Proto] 32422 | -1/Garrison | Triggered checkpoint 32446 | -1/Garrison | Triggered checkpoint 32456 | -1/Garrison | Garrison Relay disabled 32496 | -1/Garrison | X0-1V1 activates XOMVISION 32683 | -1/Garrison | Entered Access 32683 | -1/Access | Accompanied by 18 allies 32896 | -1/Access | Spotted B-99 Colossus 32896 | -1/Access | Spotted B-99 Colossus 32914 | -1/Access | Discovered new exit (range 3) 32922 | -1/Access | Entered Command 32948 | -1/Command | Lost 9 allies 33106 | -1/Command | Spotted B-99 Colossus 33384 | -1/Command | Found Quantum Capacitor 33493 | -1/Command | Identified exit to Access_0 33493 | -1/Command | X0-1V1 revealed exit location to -1/Access_0 33764 | -1/Command | Spotted M Guard 33852 | -1/Command | X0-1V1 activates XOMVISION 34028 | -1/Command | Spotted M Guard 34028 | -1/Command | Spotted Combat Programmer 34032 | -1/Command | Spotted Combat Programmer 34056 | -1/Command | System corruption reached 10% 34107 | -1/Command | Assimilated M Guard with formatsys_high 34109 | -1/Command | Allies destroyed Combat Programmer 34114 | -1/Command | Assimilated M Guard with formatsys_high 34134 | -1/Command | Found Corrupted Prototype Launcher 34134 | -1/Command | Identified Hellfire Missile Launcher 34137 | -1/Command | Lost 4 parts (2u2w) 34142 | -1/Command | System corruption reached 30% 34146 | -1/Command | Lost 5 allies 34720 | -1/Command | Identified exit to Surface 34720 | -1/Command | X0-1V1 revealed exit location to -0/Surface 34985 | -1/Command | Identified Subatomic Replicator 34985 | -1/Command | Used Subatomic Replicator to replicate Core Cannon 35380 | -1/Command | 0b10 Conduit disabled 35381 | -1/Command | Met MAIN.C 35401 | -1/Command | Allies destroyed MAIN.C Shell 35401 | -1/Command | MAIN.C activated Command garrisons 35448 | -1/Command | Allies destroyed MAIN.C 35456 | -1/Command | X0-1V1 revealed exit location to -0/Surface 35481 | -1/Command | X0-1V1 activates XOMVISION 35487 | -1/Command | Discovered exit to Surface (range 27) 35487 | -1/Command | Discovered exit to Surface (range 90) 35487 | -1/Command | Extracted map data and part IDs from MAIN.C's data core 35525 | -1/Command | Phase Generator disabled 35531 | -1/Command | All MAIN.C guards destroyed 35593 | -1/Command | Core integrity restored by X0-1V1 (+230) 36024 | -1/Command | Used Terrabomb 36049 | -1/Command | Found Vortex Chain Reactor 36105 | -1/Command | Found Spectral Analyzer 36133 | -1/Command | Found Zero-point Reactor 36158 | -1/Command | Found Multirail 36166 | -1/Command | Found Exp. EM Shield 36285 | -1/Command | X0-1V1 activates XOMVISION 36395 | -1/Command | Build established: Scavenger-Tank 36423 | -1/Command | X0-1V1 rewrote Overseer 10a IFF filter 36594 | -1/Command | X0-1V1 mutated your Utility slot to Propulsion slot 37234 | -1/Command | Found Exp. Core Analyzer 37251 | -1/Command | X0-1V1 sent you to a vault 37951 | -1/Command | Warped through subspace to slip node 37955 | -1/Command | Entered Access_0 37956 | -1/Access_0 | Met Architect 37969 | -1/Access_0 | Destroyed A8 37997 | -1/Access_0 | Architect warped through subspace 38024 | -1/Access_0 | Lost 4 parts (2u2w) 38036 | -1/Access_0 | Architect warped through subspace 38077 | -1/Access_0 | X0-1V1 whisked you away to safety 38134 | -1/Access_0 | Architect warped through subspace 38166 | -1/Access_0 | Architect warped through subspace 38178 | -1/Access_0 | Found Integrated Dissipator 38178 | -1/Access_0 | Installed Integrated Dissipator, increased core heat dissipation (+20) 38193 | -1/Access_0 | Core integrity fell below 50% 38194 | -1/Access_0 | Architect warped through subspace 38229 | -1/Access_0 | Architect warped through subspace 38258 | -1/Access_0 | Architect warped through subspace 38287 | -1/Access_0 | Architect warped through subspace 38310 | -1/Access_0 | Architect warped through subspace 38341 | -1/Access_0 | Architect warped through subspace 38368 | -1/Access_0 | Architect warped through subspace 38374 | -1/Access_0 | Found Exp. Powered Armor 38393 | -1/Access_0 | Architect warped through subspace 38420 | -1/Access_0 | Architect warped through subspace 38454 | -1/Access_0 | Destroyed Architect 38455 | -1/Access_0 | Architect triggered a singularity event 38461 | -1/Access_0 | Found Hpw. Transdimensional Reconstructor 38461 | -1/Access_0 | Warped through subspace to slip node 38461 | -1/Access_0 | Discovered exit to Surface (range 8) 38463 | -1/Access_0 | Released all parts (17) 38466 | -1/Access_0 | Crushed by singularity! Last Messages --------------- 38463_ Released Coolant Network. 38463_ Released Exp. Core Analyzer. 38463_ Released Armor Integrity Analyzer. 38463_ Released Cep. Weapon Articulator. 38463_ Released Vortex Chain Reactor. 38463_ Released Exp. Heat Sink. 38463_ Released Exp. Biometal Heavy Treads. 38463_ Released Adv. Thermal Shield. 38463_ Released Hyb. Graviton Reactor. 38463_ Released Huge Storage Unit. 38463_ Phase Redirector crushed and broken. 38463_ Multirail crushed and broken. 38463_ Released Exp. Biometal Heavy Treads. 38463_ Exp. Biometal Heavy Treads crushed and broken. 38463_ Released Spectral Analyzer. 38463_ Released Adv. Weapon Cycler. 38463_ Adv. Weapon Cycler crushed and broken. 38464_ A0_COM: 2. 38465_ A0_COM: 1. 38466_ X0-1V1 guffaws! Map ----- +----------------------------------------------------+ | | | | | | | | | | | | | | | | | | | | | | | | | | | | | | | ?????????????????????????????????????????????????? | | ?????????????????????????????????????????????????? | | ?????????????????????????????????????????????????? | | ?????????????????????????????????????????????????? | | ?????????????????????????????????????????????????? | | ?????????????????????????????????????????????????? | | ??????????????????????????##?????????????????????? | | ????????????????????????## ##????????????????????? | | ????????????????????????# #????????????????????? | | ????????????????????????# < #????????????????????? | | ???????????????????????##@ #????????????????????? | | ???????????????????????# ]* #????????????????????? | | ???????????????????????#]!!##????????????????????? | | ???????????????????????##![!#????????????????????? | | ???????????????????????#]!!!#????????????????????? | | ???????????????????????#!!*##????????????????????? | | ???????????????????????#!]]!#????????????????????? | | ???????????????????????#!!=##????????????????????? | | ???????????????????????##!!#?????????????????????? | | ????????????????????????####?????????????????????? | | ?????????????????????????????????????????????????? | | ?????????????????????????????????????????????????? | | ?????????????????????????????????????????????????? | | ?????????????????????????????????????????????????? | | ?????????????????????????????????????????????????? | | ?????????????????????????????????????????????????? | | ?????????????????????????????????????????????????? | | ?????????????????????????????????????????????????? | | ?????????????????????????????????????????????????? | | ?????????????????????????????????????????????????? | | ?????????????????????????????????????????????????? | | ?????????????????????????????????????????????????? | | ?????????????????????????????????????????????????? | | ?????????????????????????????????????????????????? | | ?????????????????????????????????????????????????? | +----------------------------------------------------+ Best States ------------- Heat Dissipation 237 Energy Generation 95 Energy Capacity 3190 Matter Stores 1000 Matter Capacity 1050 Sight Range 30 Terrain Scan Density 10 Jamming Range 14 Power Amplification 40 Base Temperature (-) 150 Armor Coverage 2000 Resistance: KI 33 Resistance: TH 66 Resistance: EM 25 Point Defense Rating 160 Weapon Cycling 30 Phase Shifting 15 Evasion (%) 55 Targeting Accuracy 30 Target Analysis 6 Core Analysis 8 Armor Integrity Analysis 30 Recoil Reduction 5 Energy Filtering 30 Kinecelleration 50 Defensive Hacking 10 Relay Coupler Types 10 Relay Coupler Value 540 Item Schematics ----------------- Exp. Cooling System | -2/Quarantine | Archive Robot Schematics ------------------ W-44 Eye | -2/Quarantine | Archive H-77 Assassin | -2/Quarantine | Archive Fabricated ------------ Nothing Repaired ---------- Nothing Studied --------- Lgt. Treads | -8/Materials | Hacked Grenade Launcher | -8/Materials | Hacked Mni. Grenade Launcher | -8/Materials | Hacked Imp. Remote Datajack | -5/Factory | Hacked Neutrino Core | -5/Factory | Hacked Imp. Heavy Treads | -4/Factory | Hacked Biometal Heavy Treads | -2/Quarantine | Hacked Adv. Heavy Siege Treads | -2/Protoforge | Hacked Hvy. Siege Treads | -2/Protoforge | Hacked Enh. Hardcell Cannon | -2/Protoforge | Hacked Alien Tech Used ----------------- Dimensional Node Initializer Transdimensional Reconstructor High-powered Transdimensional Reconstructor Terrabomb Phase Redirector Phase Armor Core Cannon Subatomic Replicator Integrated Dissipator Achievements -------------- Behind The Curtain Blink Of An Eye The Bigger They Are Challenges ------------ None Game ------ Seed ConcussiveTiamatBooster Manual? 0 Play Time 05:47:26 Cumulative 534.6 hours Start 2026.08.01 @ 11:53:58 End 2026.08.01 @ 17:56:50 Sessions 1 Manual Loads 0 Difficulty Rogue Special Mode None Game No. 266 Rogue 266 Adventurer 0 Explorer 0 Win Type - Total 18 Types 10/0/3/1/1/0/0/1/0/2 Lore% 86 Gallery% 82 Achievement% 71 Wizard Run 0 Options --------- Layout 0 ASCII 0 Keyboard 0 Movement Mouse Keybinds 0 Fullscreen 1 Font 18/SmallcapsGlow Map View 76x50 Zoom Use 0% Tactical HUD 1 Map Filters NONE Filters NONE Steam 1 RUN: 16bb031c-3154-4d9b-a0aa-7c04c5231726